{"text_format":"1","workbook":"xlsx","n_sheets":4,"sheets":["Risikoanalyse","Matrix","Gefährdungsbeurteilung","Unterweisungprotokoll"],"not_rendered":{"charts":0,"images":6,"macros":1,"external_links":0,"defined_names":9,"comments":0,"pivot_tables":0},"unopened":[],"bounds":{"document_bytes":16777216,"sheet_cells":100000,"rows_first":2000,"rows_last":500,"rows_between":2000,"halvings":0,"cell_chars":16384,"cell_head_chars":4096},"cells_cut":0,"cells_raw":0,"read":"whole","date_system":"1900"}

{"sheet":"Risikoanalyse","index":0,"n_rows":298,"n_cols":4,"rows_kept":298,"cut":false,"hidden":false,"merged":[]}
[]
[]
[]
["Gefährdungsanalyse für:"]
[]
[]
["Nr. ","Tätigkeit","Bauphase\nJa / Nein","Inbetriebnahme/Betrieb"]
[1,"Organisation des betrieblichen Arbeitsschutzes",{"$f":"IF(Gefährdungsbeurteilung!A13=\"x\",\"Ja\",\"Nein\")","v":"Ja"},"AG seitig"]
[2,"Gefährdungsbeurteilungen",{"$f":"IF(Gefährdungsbeurteilung!A14=\"x\",\"Ja\",\"Nein\")","v":"Ja"},"AG seitig"]
[3,"Koordination von Fremdunternehmen bei Zusammenarbeit",{"$f":"IF(Gefährdungsbeurteilung!A15=\"x\",\"Ja\",\"Nein\")","v":"Ja"},"AG seitig"]
[4,"Organisation der Ersten Hilfe",{"$f":"IF(Gefährdungsbeurteilung!A16=\"x\",\"Ja\",\"Nein\")","v":"Ja"},"AG seitig"]
[5,"Rettungsgeräte/Rettungstransportmittel",{"$f":"IF(Gefährdungsbeurteilung!A17=\"x\",\"Ja\",\"Nein\")","v":"Nein"},"AG seitig"]
[6,"Sicherheits- und Gesundheitsschutzkennzeichnung, Flucht- und Rettungsplan",{"$f":"IF(Gefährdungsbeurteilung!A18=\"x\",\"Ja\",\"Nein\")","v":"Ja"},"AG seitig"]
[7,"Verkehrszeichen an Straßen",{"$f":"IF(Gefährdungsbeurteilung!A19=\"x\",\"Ja\",\"Nein\")","v":"Ja"},"AG seitig"]
[8,"Brandschutz",{"$f":"IF(Gefährdungsbeurteilung!A20=\"x\",\"Ja\",\"Nein\")","v":"Ja"},"AG seitig"]
[9,"Arbeitsräume",{"$f":"IF(Gefährdungsbeurteilung!A21=\"x\",\"Ja\",\"Nein\")","v":"Ja"},"AG seitig"]
[10,"Bildschirmarbeitsplätze",{"$f":"IF(Gefährdungsbeurteilung!A22=\"x\",\"Ja\",\"Nein\")","v":"Nein"},"AG seitig"]
[11,"Künstliche Beleuchtung auf Baustellen",{"$f":"IF(Gefährdungsbeurteilung!A23=\"x\",\"Ja\",\"Nein\")","v":"Ja"},"AG seitig"]
[12,"Unterkünfte auf Baustellen",{"$f":"IF(Gefährdungsbeurteilung!A24=\"x\",\"Ja\",\"Nein\")","v":"Ja"},"AG seitig"]
[13,"Verkehrswege auf Baustellen",{"$f":"IF(Gefährdungsbeurteilung!A25=\"x\",\"Ja\",\"Nein\")","v":"Ja"},"AG seitig"]
[14,"Verkehrswege auf Dächern",{"$f":"IF(Gefährdungsbeurteilung!A26=\"x\",\"Ja\",\"Nein\")","v":"Nein"},"AG seitig"]
[15,"Fahrzeuginstandhaltung",{"$f":"IF(Gefährdungsbeurteilung!#REF!=\"x\",\"Ja\",\"Nein\")","v":{"$error":"#REF!"}},"AG seitig"]
[16,"Lärm",{"$f":"IF(Gefährdungsbeurteilung!A27=\"x\",\"Ja\",\"Nein\")","v":"Ja"},"AG seitig"]
[17,"Gefahrstoffe",{"$f":"IF(Gefährdungsbeurteilung!A28=\"x\",\"Ja\",\"Nein\")","v":"Ja"},"AG seitig"]
[18,"Gefahrstoffe",{"$f":"IF(Gefährdungsbeurteilung!A29=\"x\",\"Ja\",\"Nein\")","v":"Ja"},"AG seitig"]
[19,"Biologische Arbeitsstoffe",{"$f":"IF(Gefährdungsbeurteilung!A30=\"x\",\"Ja\",\"Nein\")","v":"Nein"},"AG seitig"]
[20,"Gaslagerbehälter auf Baustellen",{"$f":"IF(Gefährdungsbeurteilung!A31=\"x\",\"Ja\",\"Nein\")","v":"Nein"},"AG seitig"]
[21,"Lagerräume für brennbare Flüssigkeiten",{"$f":"IF(Gefährdungsbeurteilung!A32=\"x\",\"Ja\",\"Nein\")","v":"Nein"},"AG seitig"]
[22,"Lagerung von Druckgasflaschen in Gebäuden",{"$f":"IF(Gefährdungsbeurteilung!A33=\"x\",\"Ja\",\"Nein\")","v":"Ja"},"AG seitig"]
[23,"Lagerung von Druckgasflaschen im Freien",{"$f":"IF(Gefährdungsbeurteilung!A34=\"x\",\"Ja\",\"Nein\")","v":"Ja"},"AG seitig"]
[24,"Transport von Druckgasflaschen",{"$f":"IF(Gefährdungsbeurteilung!A35=\"x\",\"Ja\",\"Nein\")","v":"Nein"},"AG seitig"]
[25,"Holzlager",{"$f":"IF(Gefährdungsbeurteilung!A36=\"x\",\"Ja\",\"Nein\")","v":"Nein"},"AG seitig"]
[26,"Kraftfahrzeugbetrieb",{"$f":"IF(Gefährdungsbeurteilung!A37=\"x\",\"Ja\",\"Nein\")","v":"Ja"},"AG seitig"]
[27,"Transport von Baumaschinen",{"$f":"IF(Gefährdungsbeurteilung!A38=\"x\",\"Ja\",\"Nein\")","v":"Ja"},"AG seitig"]
[28,"Ladungssicherung",{"$f":"IF(Gefährdungsbeurteilung!A39=\"x\",\"Ja\",\"Nein\")","v":"Ja"},"AG seitig"]
[29,"Transport von Gefahrgütern in kleinen Mengen",{"$f":"IF(Gefährdungsbeurteilung!#REF!=\"x\",\"Ja\",\"Nein\")","v":{"$error":"#REF!"}},"AG seitig"]
[30,"Sicherung von Arbeitsstellen an Straßen",{"$f":"IF(Gefährdungsbeurteilung!A40=\"x\",\"Ja\",\"Nein\")","v":"Ja"},"AG seitig"]
[31,"Absturzsicherungen auf Baustellen",{"$f":"IF(Gefährdungsbeurteilung!A41=\"x\",\"Ja\",\"Nein\")","v":"Ja"},"AG seitig"]
[32,"Dachschutzwände",{"$f":"IF(Gefährdungsbeurteilung!A42=\"x\",\"Ja\",\"Nein\")","v":"Nein"},"AG seitig"]
[33,"Schutznetze",{"$f":"IF(Gefährdungsbeurteilung!A43=\"x\",\"Ja\",\"Nein\")","v":"Nein"},"AG seitig"]
[34,"Dachdeckerstühle/Auflegeleitern/Sicherheits- dachhaken",{"$f":"IF(Gefährdungsbeurteilung!A44=\"x\",\"Ja\",\"Nein\")","v":"Nein"},"AG seitig"]
[35,"Flachdach - Absturzsicherungssysteme",{"$f":"IF(Gefährdungsbeurteilung!A45=\"x\",\"Ja\",\"Nein\")","v":"Nein"},"AG seitig"]
[36,"Transportable Silos",{"$f":"IF(Gefährdungsbeurteilung!A46=\"x\",\"Ja\",\"Nein\")","v":"Nein"},"AG seitig"]
[37,"Fanggerüste",{"$f":"IF(Gefährdungsbeurteilung!A47=\"x\",\"Ja\",\"Nein\")","v":"Nein"},"AG seitig"]
[38,"Fahrbare Arbeitsbühnen",{"$f":"IF(Gefährdungsbeurteilung!A48=\"x\",\"Ja\",\"Nein\")","v":"Nein"},"AG seitig"]
[39,"Fassadengerüste",{"$f":"IF(Gefährdungsbeurteilung!A49=\"x\",\"Ja\",\"Nein\")","v":"Ja"},"AG seitig"]
[40,"Schutzdächer",{"$f":"IF(Gefährdungsbeurteilung!A50=\"x\",\"Ja\",\"Nein\")","v":"Nein"},"AG seitig"]
[41,"Gerüste für den Schornsteinbau",{"$f":"IF(Gefährdungsbeurteilung!A51=\"x\",\"Ja\",\"Nein\")","v":"Nein"},"AG seitig"]
[42,"Leitergerüste an Fassaden",{"$f":"IF(Gefährdungsbeurteilung!A52=\"x\",\"Ja\",\"Nein\")","v":"Nein"},"AG seitig"]
[43,"Bockgerüste",{"$f":"IF(Gefährdungsbeurteilung!A53=\"x\",\"Ja\",\"Nein\")","v":"Nein"},"AG seitig"]
[44,"Auslegergerüste",{"$f":"IF(Gefährdungsbeurteilung!A54=\"x\",\"Ja\",\"Nein\")","v":"Nein"},"AG seitig"]
[45,"Traggerüste",{"$f":"IF(Gefährdungsbeurteilung!A55=\"x\",\"Ja\",\"Nein\")","v":"Ja"},"AG seitig"]
[46,"Dachfanggerüste",{"$f":"IF(Gefährdungsbeurteilung!A56=\"x\",\"Ja\",\"Nein\")","v":"Nein"},"AG seitig"]
[47,"Hängegerüste",{"$f":"IF(Gefährdungsbeurteilung!A57=\"x\",\"Ja\",\"Nein\")","v":"Ja"},"AG seitig"]
[48,"Dachgerüste für den Hausschornsteinbau",{"$f":"IF(Gefährdungsbeurteilung!#REF!=\"x\",\"Ja\",\"Nein\")","v":{"$error":"#REF!"}},"AG seitig"]
[49,"Anlegeleitern",{"$f":"IF(Gefährdungsbeurteilung!A58=\"x\",\"Ja\",\"Nein\")","v":"Nein"},"AG seitig"]
[50,"Stehleitern",{"$f":"IF(Gefährdungsbeurteilung!A59=\"x\",\"Ja\",\"Nein\")","v":"Nein"},"AG seitig"]
[51,"Steigleitern",{"$f":"IF(Gefährdungsbeurteilung!A60=\"x\",\"Ja\",\"Nein\")","v":"Nein"},"AG seitig"]
[52,"Wand- und Stützenschalung",{"$f":"IF(Gefährdungsbeurteilung!A61=\"x\",\"Ja\",\"Nein\")","v":"Ja"},"AG seitig"]
[53,"Schwenkarmaufzüge",{"$f":"IF(Gefährdungsbeurteilung!A62=\"x\",\"Ja\",\"Nein\")","v":"Nein"},"AG seitig"]
[54,"Anlegeaufzüge",{"$f":"IF(Gefährdungsbeurteilung!A63=\"x\",\"Ja\",\"Nein\")","v":"Nein"},"AG seitig"]
[55,"Anstellaufzüge",{"$f":"IF(Gefährdungsbeurteilung!A64=\"x\",\"Ja\",\"Nein\")","v":"Nein"},"AG seitig"]
[56,"Seilrollenaufzüge beim Turm- u. Schornsteinbau",{"$f":"IF(Gefährdungsbeurteilung!#REF!=\"x\",\"Ja\",\"Nein\")","v":{"$error":"#REF!"}},"AG seitig"]
[57,"Bauaufzüge mit Personenbeförderung",{"$f":"IF(Gefährdungsbeurteilung!A65=\"x\",\"Ja\",\"Nein\")","v":"Ja"},"AG seitig"]
[58,"Personenförderkörbe",{"$f":"IF(Gefährdungsbeurteilung!A66=\"x\",\"Ja\",\"Nein\")","v":"Ja"},"AG seitig"]
[59,"Diesel-Tankanlagen auf Baustellen",{"$f":"IF(Gefährdungsbeurteilung!A67=\"x\",\"Ja\",\"Nein\")","v":"Nein"},"AG seitig"]
[60,"Handbetriebene Arbeitssitze",{"$f":"IF(Gefährdungsbeurteilung!#REF!=\"x\",\"Ja\",\"Nein\")","v":{"$error":"#REF!"}},"AG seitig"]
[61,"Fassadenbefahranlagen",{"$f":"IF(Gefährdungsbeurteilung!#REF!=\"x\",\"Ja\",\"Nein\")","v":{"$error":"#REF!"}},"AG seitig"]
[62,"Lastaufnahmemittel im Hochbau",{"$f":"IF(Gefährdungsbeurteilung!A68=\"x\",\"Ja\",\"Nein\")","v":"Ja"},"AG seitig"]
[63,"Anschlagen von Lasten",{"$f":"IF(Gefährdungsbeurteilung!A69=\"x\",\"Ja\",\"Nein\")","v":"Ja"},"AG seitig"]
[64,"Elektrische Anlagen und Betriebsmittel auf Bau- und Montagestellen",{"$f":"IF(Gefährdungsbeurteilung!A70=\"x\",\"Ja\",\"Nein\")","v":"Nein"},"AG seitig"]
[65,"Elektrische Anlagen und Betriebsmittel",{"$f":"IF(Gefährdungsbeurteilung!A71=\"x\",\"Ja\",\"Nein\")","v":"Nein"},"AG seitig"]
[66,"Mobile Ersatzstromerzeuger",{"$f":"IF(Gefährdungsbeurteilung!A72=\"x\",\"Ja\",\"Nein\")","v":"Nein"},"AG seitig"]
[67,"Bagger",{"$f":"IF(Gefährdungsbeurteilung!A73=\"x\",\"Ja\",\"Nein\")","v":"Ja"},"AG seitig"]
[68,"Lader/Muldenfahrzeuge/Planiergeräte",{"$f":"IF(Gefährdungsbeurteilung!A74=\"x\",\"Ja\",\"Nein\")","v":"Ja"},"AG seitig"]
[69,"Rammen",{"$f":"IF(Gefährdungsbeurteilung!A75=\"x\",\"Ja\",\"Nein\")","v":"Nein"},"AG seitig"]
[70,"Bohrgeräte im Spezialtiefbau",{"$f":"IF(Gefährdungsbeurteilung!A76=\"x\",\"Ja\",\"Nein\")","v":"Ja"},"AG seitig"]
[71,"Straßenwalzen",{"$f":"IF(Gefährdungsbeurteilung!A77=\"x\",\"Ja\",\"Nein\")","v":"Nein"},"AG seitig"]
[72,"Asphalt-Straßenfertiger",{"$f":"IF(Gefährdungsbeurteilung!A78=\"x\",\"Ja\",\"Nein\")","v":"Nein"},"AG seitig"]
[73,"Straßenfräsen",{"$f":"IF(Gefährdungsbeurteilung!A79=\"x\",\"Ja\",\"Nein\")","v":"Nein"},"AG seitig"]
[74,"Grabenverbaugeräte",{"$f":"IF(Gefährdungsbeurteilung!A80=\"x\",\"Ja\",\"Nein\")","v":"Ja"},"AG seitig"]
[75,"Konsolgerüste",{"$f":"IF(Gefährdungsbeurteilung!A81=\"x\",\"Ja\",\"Nein\")","v":"Nein"},"AG seitig"]
[76,"Handwerkzeuge",{"$f":"IF(Gefährdungsbeurteilung!A82=\"x\",\"Ja\",\"Nein\")","v":"Ja"},"AG seitig"]
[77,"Glättmaschinen",{"$f":"IF(Gefährdungsbeurteilung!A83=\"x\",\"Ja\",\"Nein\")","v":"Nein"},"AG seitig"]
[78,"Mörtelspritz- und Mörtelfördermaschinen",{"$f":"IF(Gefährdungsbeurteilung!A84=\"x\",\"Ja\",\"Nein\")","v":"Ja"},"AG seitig"]
[79,"Schlagbohr- und Stemmgeräte",{"$f":"IF(Gefährdungsbeurteilung!A85=\"x\",\"Ja\",\"Nein\")","v":"Ja"},"AG seitig"]
[80,"Steinsägen",{"$f":"IF(Gefährdungsbeurteilung!A86=\"x\",\"Ja\",\"Nein\")","v":"Ja"},"AG seitig"]
[81,"Gabelstapler",{"$f":"IF(Gefährdungsbeurteilung!A87=\"x\",\"Ja\",\"Nein\")","v":"Ja"},"AG seitig"]
[82,"Hubarbeitsbühnen",{"$f":"IF(Gefährdungsbeurteilung!A88=\"x\",\"Ja\",\"Nein\")","v":"Nein"},"AG seitig"]
[83,"Turmdrehkrane - Aufstellung",{"$f":"IF(Gefährdungsbeurteilung!A89=\"x\",\"Ja\",\"Nein\")","v":"Ja"},"AG seitig"]
[84,"Turmdrehkrane - Betrieb",{"$f":"IF(Gefährdungsbeurteilung!A90=\"x\",\"Ja\",\"Nein\")","v":"Ja"},"AG seitig"]
[85,"Autokrane",{"$f":"IF(Gefährdungsbeurteilung!A91=\"x\",\"Ja\",\"Nein\")","v":"Ja"},"AG seitig"]
[86,"Betonpumpen und Verteilermaste",{"$f":"IF(Gefährdungsbeurteilung!A92=\"x\",\"Ja\",\"Nein\")","v":"Ja"},"AG seitig"]
[87,"LKW-Ladekrane",{"$f":"IF(Gefährdungsbeurteilung!A93=\"x\",\"Ja\",\"Nein\")","v":"Nein"},"AG seitig"]
[88,"Teleskopstapler",{"$f":"IF(Gefährdungsbeurteilung!A94=\"x\",\"Ja\",\"Nein\")","v":"Nein"},"AG seitig"]
[89,"Hubwagen",{"$f":"IF(Gefährdungsbeurteilung!A95=\"x\",\"Ja\",\"Nein\")","v":"Nein"},"AG seitig"]
[90,"Rundholzsortierkrane",{"$f":"IF(Gefährdungsbeurteilung!#REF!=\"x\",\"Ja\",\"Nein\")","v":{"$error":"#REF!"}},"AG seitig"]
[91,"Flüssiggasanlagen",{"$f":"IF(Gefährdungsbeurteilung!A96=\"x\",\"Ja\",\"Nein\")","v":"Nein"},"AG seitig"]
[92,"Heizgeräte",{"$f":"IF(Gefährdungsbeurteilung!A97=\"x\",\"Ja\",\"Nein\")","v":"Nein"},"AG seitig"]
[93,"Schmelzöfen",{"$f":"IF(Gefährdungsbeurteilung!#REF!=\"x\",\"Ja\",\"Nein\")","v":{"$error":"#REF!"}},"AG seitig"]
[94,"Flammgeräte",{"$f":"IF(Gefährdungsbeurteilung!A98=\"x\",\"Ja\",\"Nein\")","v":"Nein"},"AG seitig"]
[95,"Nagler",{"$f":"IF(Gefährdungsbeurteilung!#REF!=\"x\",\"Ja\",\"Nein\")","v":{"$error":"#REF!"}},"AG seitig"]
[96,"Bolzensetzwerkzeuge",{"$f":"IF(Gefährdungsbeurteilung!A99=\"x\",\"Ja\",\"Nein\")","v":"Ja"},"AG seitig"]
[97,"mobile Baukompressoren",{"$f":"IF(Gefährdungsbeurteilung!A100=\"x\",\"Ja\",\"Nein\")","v":"Nein"},"AG seitig"]
[98,"Hochdruckreiniger",{"$f":"IF(Gefährdungsbeurteilung!A101=\"x\",\"Ja\",\"Nein\")","v":"Nein"},"AG seitig"]
[99,"Farbspritzgeräte",{"$f":"IF(Gefährdungsbeurteilung!A102=\"x\",\"Ja\",\"Nein\")","v":"Nein"},"AG seitig"]
[100,"Handbandschleifmaschinen und Vibrationsschleifer",{"$f":"IF(Gefährdungsbeurteilung!A103=\"x\",\"Ja\",\"Nein\")","v":"Nein"},"AG seitig"]
[101,"Tisch- und Formatkreissägen",{"$f":"IF(Gefährdungsbeurteilung!A104=\"x\",\"Ja\",\"Nein\")","v":"Ja"},"AG seitig"]
[102,"Kappsägen",{"$f":"IF(Gefährdungsbeurteilung!A105=\"x\",\"Ja\",\"Nein\")","v":"Nein"},"AG seitig"]
[103,"Bandsägen",{"$f":"IF(Gefährdungsbeurteilung!A106=\"x\",\"Ja\",\"Nein\")","v":"Nein"},"AG seitig"]
[104,"Hobelmaschinen",{"$f":"IF(Gefährdungsbeurteilung!A107=\"x\",\"Ja\",\"Nein\")","v":"Nein"},"AG seitig"]
[105,"Fräsmaschinen",{"$f":"IF(Gefährdungsbeurteilung!A108=\"x\",\"Ja\",\"Nein\")","v":"Nein"},"AG seitig"]
[106,"Abbundkreissägen/Abbundanlagen",{"$f":"IF(Gefährdungsbeurteilung!A109=\"x\",\"Ja\",\"Nein\")","v":"Nein"},"AG seitig"]
[107,"Handkettensägen",{"$f":"IF(Gefährdungsbeurteilung!A110=\"x\",\"Ja\",\"Nein\")","v":"Nein"},"AG seitig"]
[108,"Tischbandschleifmaschinen",{"$f":"IF(Gefährdungsbeurteilung!A111=\"x\",\"Ja\",\"Nein\")","v":"Nein"},"AG seitig"]
[109,"Untertischkappkreissägen",{"$f":"IF(Gefährdungsbeurteilung!A112=\"x\",\"Ja\",\"Nein\")","v":"Nein"},"AG seitig"]
[110,"Kettenstemm-Maschinen",{"$f":"IF(Gefährdungsbeurteilung!A113=\"x\",\"Ja\",\"Nein\")","v":"Nein"},"AG seitig"]
[111,"Schuttrutschen",{"$f":"IF(Gefährdungsbeurteilung!A114=\"x\",\"Ja\",\"Nein\")","v":"Nein"},"AG seitig"]
[112,"Baustellenkreissägen/Handkreissägen",{"$f":"IF(Gefährdungsbeurteilung!A115=\"x\",\"Ja\",\"Nein\")","v":"Ja"},"AG seitig"]
[113,"Bohrmaschinen",{"$f":"IF(Gefährdungsbeurteilung!A116=\"x\",\"Ja\",\"Nein\")","v":"Ja"},"AG seitig"]
[114,"Handbetriebene Scheren und Stanzen",{"$f":"IF(Gefährdungsbeurteilung!#REF!=\"x\",\"Ja\",\"Nein\")","v":{"$error":"#REF!"}},"AG seitig"]
[115,"Kraftbetriebene Scheren",{"$f":"IF(Gefährdungsbeurteilung!#REF!=\"x\",\"Ja\",\"Nein\")","v":{"$error":"#REF!"}},"AG seitig"]
[116,"Metallsägen",{"$f":"IF(Gefährdungsbeurteilung!A117=\"x\",\"Ja\",\"Nein\")","v":"Nein"},"AG seitig"]
[117,"Rundmaschinen/Walzen",{"$f":"IF(Gefährdungsbeurteilung!#REF!=\"x\",\"Ja\",\"Nein\")","v":{"$error":"#REF!"}},"AG seitig"]
[118,"Gewindeschneidemaschinen",{"$f":"IF(Gefährdungsbeurteilung!#REF!=\"x\",\"Ja\",\"Nein\")","v":{"$error":"#REF!"}},"AG seitig"]
[119,"Abkantbänke",{"$f":"IF(Gefährdungsbeurteilung!#REF!=\"x\",\"Ja\",\"Nein\")","v":{"$error":"#REF!"}},"AG seitig"]
[120,"Schleifmaschinen",{"$f":"IF(Gefährdungsbeurteilung!#REF!=\"x\",\"Ja\",\"Nein\")","v":{"$error":"#REF!"}},"AG seitig"]
[121,"Handtrennschleifmaschinen",{"$f":"IF(Gefährdungsbeurteilung!A118=\"x\",\"Ja\",\"Nein\")","v":"Nein"},"AG seitig"]
[122,"Reinigungsmaschinen",{"$f":"IF(Gefährdungsbeurteilung!A119=\"x\",\"Ja\",\"Nein\")","v":"Nein"},"AG seitig"]
[123,"Flammgeräte",{"$f":"IF(Gefährdungsbeurteilung!A120=\"x\",\"Ja\",\"Nein\")","v":"Nein"},"AG seitig"]
[124,"Mischmaschinen",{"$f":"IF(Gefährdungsbeurteilung!A121=\"x\",\"Ja\",\"Nein\")","v":"Nein"},"AG seitig"]
[125,"Pendelkreissägen/Auslegerkreissägen",{"$f":"IF(Gefährdungsbeurteilung!A122=\"x\",\"Ja\",\"Nein\")","v":"Nein"},"AG seitig"]
[126,"Seilsägen",{"$f":"IF(Gefährdungsbeurteilung!#REF!=\"x\",\"Ja\",\"Nein\")","v":{"$error":"#REF!"}},"AG seitig"]
[127,"Gabelstapler",{"$f":"IF(Gefährdungsbeurteilung!#REF!=\"x\",\"Ja\",\"Nein\")","v":{"$error":"#REF!"}},"AG seitig"]
[128,"Arbeitskörbe/Arbeitssitze/Arbeitsbühnen",{"$f":"IF(Gefährdungsbeurteilung!#REF!=\"x\",\"Ja\",\"Nein\")","v":{"$error":"#REF!"}},"AG seitig"]
[129,"Abbruch von Türmen, Schornsteinen und Silos",{"$f":"IF(Gefährdungsbeurteilung!#REF!=\"x\",\"Ja\",\"Nein\")","v":{"$error":"#REF!"}},"AG seitig"]
[130,"Abbrucharbeiten",{"$f":"IF(Gefährdungsbeurteilung!A123=\"x\",\"Ja\",\"Nein\")","v":"Ja"},"AG seitig"]
[131,"Abbruch mit Großgeräten",{"$f":"IF(Gefährdungsbeurteilung!A124=\"x\",\"Ja\",\"Nein\")","v":"Nein"},"AG seitig"]
[132,"Abbruch von Hand/Demontieren",{"$f":"IF(Gefährdungsbeurteilung!A125=\"x\",\"Ja\",\"Nein\")","v":"Nein"},"AG seitig"]
[133,"Abbruch durch Sprengen",{"$f":"IF(Gefährdungsbeurteilung!#REF!=\"x\",\"Ja\",\"Nein\")","v":{"$error":"#REF!"}},"AG seitig"]
[134,"Demontagearbeiten",{"$f":"IF(Gefährdungsbeurteilung!A126=\"x\",\"Ja\",\"Nein\")","v":"Nein"},"AG seitig"]
[135,"Demontagearbeiten",{"$f":"IF(Gefährdungsbeurteilung!#REF!=\"x\",\"Ja\",\"Nein\")","v":{"$error":"#REF!"}},"AG seitig"]
[136,"Asbestzementprodukte",{"$f":"IF(Gefährdungsbeurteilung!A127=\"x\",\"Ja\",\"Nein\")","v":"Nein"},"AG seitig"]
[137,"Schwach gebundene Asbestprodukte",{"$f":"IF(Gefährdungsbeurteilung!A128=\"x\",\"Ja\",\"Nein\")","v":"Nein"},"AG seitig"]
[138,"Holzschutzmittel",{"$f":"IF(Gefährdungsbeurteilung!#REF!=\"x\",\"Ja\",\"Nein\")","v":{"$error":"#REF!"}},"AG seitig"]
[139,"Grundierungen/Klebstoffe/Versiegelungen",{"$f":"IF(Gefährdungsbeurteilung!A129=\"x\",\"Ja\",\"Nein\")","v":"Nein"},"AG seitig"]
[140,"Holzstäube",{"$f":"IF(Gefährdungsbeurteilung!A130=\"x\",\"Ja\",\"Nein\")","v":"Nein"},"AG seitig"]
[141,"Arbeiten in kontaminierten Bereichen",{"$f":"IF(Gefährdungsbeurteilung!A131=\"x\",\"Ja\",\"Nein\")","v":"Nein"},"AG seitig"]
[142,"Steinstäube",{"$f":"IF(Gefährdungsbeurteilung!A132=\"x\",\"Ja\",\"Nein\")","v":"Ja"},"AG seitig"]
[143,"Brandschadensanierung",{"$f":"IF(Gefährdungsbeurteilung!#REF!=\"x\",\"Ja\",\"Nein\")","v":{"$error":"#REF!"}},"AG seitig"]
[144,"Mineralwolle-Dämmstoffe - Glas-, Stein- und Schlackenwolle",{"$f":"IF(Gefährdungsbeurteilung!A133=\"x\",\"Ja\",\"Nein\")","v":"Nein"},"AG seitig"]
[145,"Alte Mineralwolle-Dämmstoffe - Glas- u. Steinwolle mit krebsverdächtigen Eigenschaften",{"$f":"IF(Gefährdungsbeurteilung!A134=\"x\",\"Ja\",\"Nein\")","v":"Nein"},"AG seitig"]
[146,"Betontrennmittel",{"$f":"IF(Gefährdungsbeurteilung!#REF!=\"x\",\"Ja\",\"Nein\")","v":{"$error":"#REF!"}},"AG seitig"]
[147,"Kampfmittelräumung",{"$f":"IF(Gefährdungsbeurteilung!A135=\"x\",\"Ja\",\"Nein\")","v":"Nein"},"AG seitig"]
[148,"Schimmelpilze bei der Gebäudesanierung",{"$f":"IF(Gefährdungsbeurteilung!A136=\"x\",\"Ja\",\"Nein\")","v":"Nein"},"AG seitig"]
[149,"Verunreinigungen durch Tauben",{"$f":"IF(Gefährdungsbeurteilung!A137=\"x\",\"Ja\",\"Nein\")","v":"Nein"},"AG seitig"]
[150,"Reinigen, Abbeizen und Konservieren von Fassaden",{"$f":"IF(Gefährdungsbeurteilung!A138=\"x\",\"Ja\",\"Nein\")","v":"Nein"},"AG seitig"]
[151,"Reinigungs- und Pflegemittel",{"$f":"IF(Gefährdungsbeurteilung!A139=\"x\",\"Ja\",\"Nein\")","v":"Nein"},"AG seitig"]
[152,"Desinfektionsmittel",{"$f":"IF(Gefährdungsbeurteilung!A140=\"x\",\"Ja\",\"Nein\")","v":"Nein"},"AG seitig"]
[153,"Glas- und Fassadenreinigung",{"$f":"IF(Gefährdungsbeurteilung!A141=\"x\",\"Ja\",\"Nein\")","v":"Nein"},"AG seitig"]
[154,"Gebäudeinnenreinigung",{"$f":"IF(Gefährdungsbeurteilung!A142=\"x\",\"Ja\",\"Nein\")","v":"Nein"},"AG seitig"]
[155,"Krankenhausreinigung",{"$f":"IF(Gefährdungsbeurteilung!#REF!=\"x\",\"Ja\",\"Nein\")","v":{"$error":"#REF!"}},"AG seitig"]
[156,"Dachdeckung mit Reet",{"$f":"IF(Gefährdungsbeurteilung!#REF!=\"x\",\"Ja\",\"Nein\")","v":{"$error":"#REF!"}},"AG seitig"]
[157,"Dachdeckung mit Profilblechen",{"$f":"IF(Gefährdungsbeurteilung!A143=\"x\",\"Ja\",\"Nein\")","v":"Nein"},"AG seitig"]
[158,"Dachdeckung mit Wellplatten",{"$f":"IF(Gefährdungsbeurteilung!A144=\"x\",\"Ja\",\"Nein\")","v":"Nein"},"AG seitig"]
[159,"Dacharbeiten - Dachlatten als Arbeitsplatz",{"$f":"IF(Gefährdungsbeurteilung!#REF!=\"x\",\"Ja\",\"Nein\")","v":{"$error":"#REF!"}},"AG seitig"]
[160,"Dacharbeiten - Arbeitsplätze und Absturzsicherungen",{"$f":"IF(Gefährdungsbeurteilung!A145=\"x\",\"Ja\",\"Nein\")","v":"Nein"},"AG seitig"]
[161,"Dacharbeiten - Öffnungen u. Lichtkuppeln",{"$f":"IF(Gefährdungsbeurteilung!A146=\"x\",\"Ja\",\"Nein\")","v":"Nein"},"AG seitig"]
[162,"Gerüstbauarbeiten - Sicherung gegen Absturz beim Auf-, Um- und Abbau",{"$f":"IF(Gefährdungsbeurteilung!A147=\"x\",\"Ja\",\"Nein\")","v":"Nein"},"AG seitig"]
[163,"Gerüstbauarbeiten - Plan für Auf-, Um- und Aufbau / Montageanweisung",{"$f":"IF(Gefährdungsbeurteilung!A148=\"x\",\"Ja\",\"Nein\")","v":"Nein"},"AG seitig"]
[164,"Gerüstbauarbeiten - Prüfung u. Dokumentation, Plan für die Benutzung",{"$f":"IF(Gefährdungsbeurteilung!A149=\"x\",\"Ja\",\"Nein\")","v":"Nein"},"AG seitig"]
[165,"Gerüstbauarbeiten - PSA gegen Absturz (PSAgA)",{"$f":"IF(Gefährdungsbeurteilung!A150=\"x\",\"Ja\",\"Nein\")","v":"Ja"},"AG seitig"]
[166,"Gerüstbauarbeiten im öffentlichen Verkehrsraum",{"$f":"IF(Gefährdungsbeurteilung!A151=\"x\",\"Ja\",\"Nein\")","v":"Nein"},"AG seitig"]
[167,"Gerüstbauarbeiten - Befähigte Personen u. fachlich geeignete Beschäftigte",{"$f":"IF(Gefährdungsbeurteilung!A152=\"x\",\"Ja\",\"Nein\")","v":"Nein"},"AG seitig"]
[168,"Fertigteile aus Beton und Mauerwerk",{"$f":"IF(Gefährdungsbeurteilung!A153=\"x\",\"Ja\",\"Nein\")","v":"Nein"},"AG seitig"]
[169,"Montage von Holzbauteilen",{"$f":"IF(Gefährdungsbeurteilung!A154=\"x\",\"Ja\",\"Nein\")","v":"Nein"},"AG seitig"]
[170,"Vorspannarbeiten",{"$f":"IF(Gefährdungsbeurteilung!#REF!=\"x\",\"Ja\",\"Nein\")","v":{"$error":"#REF!"}},"AG seitig"]
[171,"Steinbearbeitung",{"$f":"IF(Gefährdungsbeurteilung!A155=\"x\",\"Ja\",\"Nein\")","v":"Ja"},"AG seitig"]
[172,"Bohren und Sägen von Beton und Asphalt",{"$f":"IF(Gefährdungsbeurteilung!A156=\"x\",\"Ja\",\"Nein\")","v":"Nein"},"AG seitig"]
[173,"Verarbeiten großformatiger Mauersteine",{"$f":"IF(Gefährdungsbeurteilung!A157=\"x\",\"Ja\",\"Nein\")","v":"Ja"},"AG seitig"]
[174,"Glaslagerung/Glastransport",{"$f":"IF(Gefährdungsbeurteilung!#REF!=\"x\",\"Ja\",\"Nein\")","v":{"$error":"#REF!"}},"AG seitig"]
[175,"Glasbearbeitung/Glasverarbeitung",{"$f":"IF(Gefährdungsbeurteilung!A158=\"x\",\"Ja\",\"Nein\")","v":"Nein"},"AG seitig"]
[176,"Arbeiten unter Hitzeeinwirkung im Feuerfestbau",{"$f":"IF(Gefährdungsbeurteilung!#REF!=\"x\",\"Ja\",\"Nein\")","v":{"$error":"#REF!"}},"AG seitig"]
[177,"Bearbeiten und Montage von feuerfesten Fertigteilen",{"$f":"IF(Gefährdungsbeurteilung!#REF!=\"x\",\"Ja\",\"Nein\")","v":{"$error":"#REF!"}},"AG seitig"]
[178,"Trocknen, Anheizen und Aufheizen im Feuerfestbau",{"$f":"IF(Gefährdungsbeurteilung!#REF!=\"x\",\"Ja\",\"Nein\")","v":{"$error":"#REF!"}},"AG seitig"]
[179,"Keramikfaserprodukte",{"$f":"IF(Gefährdungsbeurteilung!A159=\"x\",\"Ja\",\"Nein\")","v":"Nein"},"AG seitig"]
[180,"Schornsteinfegearbeiten",{"$f":"IF(Gefährdungsbeurteilung!#REF!=\"x\",\"Ja\",\"Nein\")","v":{"$error":"#REF!"}},"AG seitig"]
[181,"Bootslagerung/Bootstransport",{"$f":"IF(Gefährdungsbeurteilung!#REF!=\"x\",\"Ja\",\"Nein\")","v":{"$error":"#REF!"}},"AG seitig"]
[182,"Bootsbau",{"$f":"IF(Gefährdungsbeurteilung!#REF!=\"x\",\"Ja\",\"Nein\")","v":{"$error":"#REF!"}},"AG seitig"]
[183,"Strahlarbeiten",{"$f":"IF(Gefährdungsbeurteilung!A160=\"x\",\"Ja\",\"Nein\")","v":"Nein"},"AG seitig"]
[184,"Oberflächenbehandlung in Räumen und Behältern",{"$f":"IF(Gefährdungsbeurteilung!#REF!=\"x\",\"Ja\",\"Nein\")","v":{"$error":"#REF!"}},"AG seitig"]
[185,"Beschichtungsarbeiten",{"$f":"IF(Gefährdungsbeurteilung!A161=\"x\",\"Ja\",\"Nein\")","v":"Nein"},"AG seitig"]
[186,"Lacke und Anstrichstoffe",{"$f":"IF(Gefährdungsbeurteilung!A162=\"x\",\"Ja\",\"Nein\")","v":"Nein"},"AG seitig"]
[187,"Korrosionsschutzarbeiten an Metallgittermasten",{"$f":"IF(Gefährdungsbeurteilung!#REF!=\"x\",\"Ja\",\"Nein\")","v":{"$error":"#REF!"}},"AG seitig"]
[188,"Arbeiten in engen Räumen sowie in Bereichen mit erhöhter elektrischer Gefährdung",{"$f":"IF(Gefährdungsbeurteilung!A163=\"x\",\"Ja\",\"Nein\")","v":"Nein"},"AG seitig"]
[189,"Arbeiten in der Nähe elektrischer Freileitungen",{"$f":"IF(Gefährdungsbeurteilung!#REF!=\"x\",\"Ja\",\"Nein\")","v":{"$error":"#REF!"}},"AG seitig"]
[190,"Arbeiten in der Nähe von Funkanlagen",{"$f":"IF(Gefährdungsbeurteilung!#REF!=\"x\",\"Ja\",\"Nein\")","v":{"$error":"#REF!"}},"AG seitig"]
[191,"Weichlöten",{"$f":"IF(Gefährdungsbeurteilung!#REF!=\"x\",\"Ja\",\"Nein\")","v":{"$error":"#REF!"}},"AG seitig"]
[192,"Gasinstallation",{"$f":"IF(Gefährdungsbeurteilung!#REF!=\"x\",\"Ja\",\"Nein\")","v":{"$error":"#REF!"}},"AG seitig"]
[193,"Gasschweißen/Brennschneiden/Hartlöten",{"$f":"IF(Gefährdungsbeurteilung!A165=\"x\",\"Ja\",\"Nein\")","v":"Nein"},"AG seitig"]
[194,"Elektroschweißen/Schutzgasschweißen",{"$f":"IF(Gefährdungsbeurteilung!A166=\"x\",\"Ja\",\"Nein\")","v":"Nein"},"AG seitig"]
[195,"Thermisches Trennen mit Sauerstofflanzen",{"$f":"IF(Gefährdungsbeurteilung!#REF!=\"x\",\"Ja\",\"Nein\")","v":{"$error":"#REF!"}},"AG seitig"]
[196,"Arbeiten im Gleisbereich - Arbeitsvorbereitung",{"$f":"IF(Gefährdungsbeurteilung!A167=\"x\",\"Ja\",\"Nein\")","v":"Nein"},"AG seitig"]
[197,"Arbeiten im Gleisbereich - Warnsysteme",{"$f":"IF(Gefährdungsbeurteilung!A168=\"x\",\"Ja\",\"Nein\")","v":"Nein"},"AG seitig"]
[198,"Arbeiten im Gleisbereich, Handtragbare Geräte",{"$f":"IF(Gefährdungsbeurteilung!A169=\"x\",\"Ja\",\"Nein\")","v":"Nein"},"AG seitig"]
[199,"Arbeiten mit Stopfmaschinen",{"$f":"IF(Gefährdungsbeurteilung!#REF!=\"x\",\"Ja\",\"Nein\")","v":{"$error":"#REF!"}},"AG seitig"]
[200,"Arbeiten mit Schotterplaniermaschinen",{"$f":"IF(Gefährdungsbeurteilung!A170=\"x\",\"Ja\",\"Nein\")","v":"Nein"},"AG seitig"]
[201,"Arbeiten mit Bettungsreinigungs-/Planumsverbesserungsmaschinen",{"$f":"IF(Gefährdungsbeurteilung!#REF!=\"x\",\"Ja\",\"Nein\")","v":{"$error":"#REF!"}},"AG seitig"]
[202,"Arbeiten mit Gleisumbauzügen",{"$f":"IF(Gefährdungsbeurteilung!#REF!=\"x\",\"Ja\",\"Nein\")","v":{"$error":"#REF!"}},"AG seitig"]
[203,"Arbeiten mit Zweiwegebaggern",{"$f":"IF(Gefährdungsbeurteilung!#REF!=\"x\",\"Ja\",\"Nein\")","v":{"$error":"#REF!"}},"AG seitig"]
[204,"Gleisbauarbeiten im Eisenbahntunnel",{"$f":"IF(Gefährdungsbeurteilung!#REF!=\"x\",\"Ja\",\"Nein\")","v":{"$error":"#REF!"}},"AG seitig"]
[205,"Arbeiten im Gleisabereich von Straßenbahnen",{"$f":"IF(Gefährdungsbeurteilung!A171=\"x\",\"Ja\",\"Nein\")","v":"Nein"},"AG seitig"]
[206,"Ingenieurbauarbeiten in Gleisnähe",{"$f":"IF(Gefährdungsbeurteilung!A172=\"x\",\"Ja\",\"Nein\")","v":"Nein"},"AG seitig"]
[207,"Trägerbohlwände/Spundwände",{"$f":"IF(Gefährdungsbeurteilung!A173=\"x\",\"Ja\",\"Nein\")","v":"Nein"},"AG seitig"]
[208,"Gashausanschlussleitungen",{"$f":"IF(Gefährdungsbeurteilung!#REF!=\"x\",\"Ja\",\"Nein\")","v":{"$error":"#REF!"}},"AG seitig"]
[209,"Rohrvortrieb",{"$f":"IF(Gefährdungsbeurteilung!#REF!=\"x\",\"Ja\",\"Nein\")","v":{"$error":"#REF!"}},"AG seitig"]
[210,"Arbeiten unter Tage in Druckluft",{"$f":"IF(Gefährdungsbeurteilung!A174=\"x\",\"Ja\",\"Nein\")","v":"Nein"},"AG seitig"]
[211,"Spritzbetonarbeiten",{"$f":"IF(Gefährdungsbeurteilung!A175=\"x\",\"Ja\",\"Nein\")","v":"Nein"},"AG seitig"]
[212,"Tunnelbau",{"$f":"IF(Gefährdungsbeurteilung!A176=\"x\",\"Ja\",\"Nein\")","v":"Nein"},"AG seitig"]
[213,"Ausschachtungen neben Gebäuden",{"$f":"IF(Gefährdungsbeurteilung!A177=\"x\",\"Ja\",\"Nein\")","v":"Ja"},"AG seitig"]
[214,"Gründungen neben Fundamenten",{"$f":"IF(Gefährdungsbeurteilung!A178=\"x\",\"Ja\",\"Nein\")","v":"Ja"},"AG seitig"]
[215,"Verbaute Gräben – Waagerechter und senkrechter Verbau",{"$f":"IF(Gefährdungsbeurteilung!A179=\"x\",\"Ja\",\"Nein\")","v":"Nein"},"AG seitig"]
[216,"Rohrleitungsbauarbeiten",{"$f":"IF(Gefährdungsbeurteilung!A180=\"x\",\"Ja\",\"Nein\")","v":"Ja"},"AG seitig"]
[217,"Erdverlegte Leitungen",{"$f":"IF(Gefährdungsbeurteilung!A181=\"x\",\"Ja\",\"Nein\")","v":"Ja"},"AG seitig"]
[218,"Dichtheitsprüfungen von Rohrleitungen",{"$f":"IF(Gefährdungsbeurteilung!#REF!=\"x\",\"Ja\",\"Nein\")","v":{"$error":"#REF!"}},"AG seitig"]
[219,"Bodenstabilisierung mit Bindemittel",{"$f":"IF(Gefährdungsbeurteilung!A182=\"x\",\"Ja\",\"Nein\")","v":"Nein"},"AG seitig"]
[220,"Arbeiten am Wasser",{"$f":"IF(Gefährdungsbeurteilung!A183=\"x\",\"Ja\",\"Nein\")","v":"Nein"},"AG seitig"]
[221,"Taucherarbeiten",{"$f":"IF(Gefährdungsbeurteilung!#REF!=\"x\",\"Ja\",\"Nein\")","v":{"$error":"#REF!"}},"AG seitig"]
[222,"Knieschutz",{"$f":"IF(Gefährdungsbeurteilung!#REF!=\"x\",\"Ja\",\"Nein\")","v":{"$error":"#REF!"}},"AG seitig"]
[223,"Gefährdung durch Lärm und Vibration ",{"$f":"IF(Gefährdungsbeurteilung!A187=\"x\",\"Ja\",\"Nein\")","v":"Nein"},"AG seitig"]
[224,"Schwingungseinwirkungen auf das Hand-Arm-System",{"$f":"IF(Gefährdungsbeurteilung!#REF!=\"x\",\"Ja\",\"Nein\")","v":{"$error":"#REF!"}},"AG seitig"]
[225,"Arbeiten im Bereich von Abwasseranlagen - Kanäle und Bauwerke",{"$f":"IF(Gefährdungsbeurteilung!#REF!=\"x\",\"Ja\",\"Nein\")","v":{"$error":"#REF!"}},"AG seitig"]
[226,"Arbeiten im Bereich von Abwasseranlagen - Schächte",{"$f":"IF(Gefährdungsbeurteilung!#REF!=\"x\",\"Ja\",\"Nein\")","v":{"$error":"#REF!"}},"AG seitig"]
[227,"Bahnsteigbauarbeiten",{"$f":"IF(Gefährdungsbeurteilung!#REF!=\"x\",\"Ja\",\"Nein\")","v":{"$error":"#REF!"}},"AG seitig"]
[228,"Gefährdung durch Staub",{"$f":"IF(Gefährdungsbeurteilung!A188=\"x\",\"Ja\",\"Nein\")","v":"Ja"},"AG seitig"]
[229,"Gefährdung durch biologische Arbeitsstoffe",{"$f":"IF(Gefährdungsbeurteilung!A189=\"x\",\"Ja\",\"Nein\")","v":"Nein"},"AG seitig"]
[230,"Gefährdung durch chemische Stoffe",{"$f":"IF(Gefährdungsbeurteilung!A190=\"x\",\"Ja\",\"Nein\")","v":"Nein"},"AG seitig"]
[231,"Gefährdung durch Hitze und Kälte",{"$f":"IF(Gefährdungsbeurteilung!A191=\"x\",\"Ja\",\"Nein\")","v":"Ja"},"AG seitig"]
[232,"Gefährdung durch schwere körperliche Belastungen",{"$f":"IF(Gefährdungsbeurteilung!A192=\"x\",\"Ja\",\"Nein\")","v":"Nein"},"AG seitig"]
[233,"Gefährdung durch körperliche Leistungsminderung",{"$f":"IF(Gefährdungsbeurteilung!A193=\"x\",\"Ja\",\"Nein\")","v":"Nein"},"AG seitig"]
[234,"Gefährdung durch Stress",{"$f":"IF(Gefährdungsbeurteilung!#REF!=\"x\",\"Ja\",\"Nein\")","v":{"$error":"#REF!"}},"AG seitig"]
[235,"Gefährdung durch Fehlernährung",{"$f":"IF(Gefährdungsbeurteilung!#REF!=\"x\",\"Ja\",\"Nein\")","v":{"$error":"#REF!"}},"AG seitig"]
[236,"Gefährdung durch Suchtmittel",{"$f":"IF(Gefährdungsbeurteilung!#REF!=\"x\",\"Ja\",\"Nein\")","v":{"$error":"#REF!"}},"AG seitig"]
[237,"Betriebliche Gesundheitsförderung",{"$f":"IF(Gefährdungsbeurteilung!#REF!=\"x\",\"Ja\",\"Nein\")","v":{"$error":"#REF!"}},"AG seitig"]
[238,"Arbeitsbedingte Gesundheitsgefahren",{"$f":"IF(Gefährdungsbeurteilung!#REF!=\"x\",\"Ja\",\"Nein\")","v":{"$error":"#REF!"}},"AG seitig"]
[239,"Arbeitsmedizinische Vorsorgeuntersuchungen",{"$f":"IF(Gefährdungsbeurteilung!#REF!=\"x\",\"Ja\",\"Nein\")","v":{"$error":"#REF!"}},"AG seitig"]
[240,"Ergonomie",{"$f":"IF(Gefährdungsbeurteilung!#REF!=\"x\",\"Ja\",\"Nein\")","v":{"$error":"#REF!"}},"AG seitig"]
[241,"Gashausanschlussleitungen",{"$f":"IF(Gefährdungsbeurteilung!#REF!=\"x\",\"Ja\",\"Nein\")","v":{"$error":"#REF!"}},"AG seitig"]
[242,"Geböschte Baugruben",{"$f":"IF(Gefährdungsbeurteilung!A194=\"x\",\"Ja\",\"Nein\")","v":"Ja"},"AG seitig"]
[243,"Arbeiten in Bohrungen",{"$f":"IF(Gefährdungsbeurteilung!#REF!=\"x\",\"Ja\",\"Nein\")","v":{"$error":"#REF!"}},"AG seitig"]
[244,"Einbau von Gussasphalt",{"$f":"IF(Gefährdungsbeurteilung!#REF!=\"x\",\"Ja\",\"Nein\")","v":{"$error":"#REF!"}},"AG seitig"]
[245,"Anzeige der Inbetriebnahme eines hochziehbaren Personenaufnahmemittels",{"$f":"IF(Gefährdungsbeurteilung!A197=\"x\",\"Ja\",\"Nein\")","v":"Ja"},"AG seitig"]
[246,"Beantragung von Kranführern/innen ortsveränderlicher Krane gemäß § 29 UVV \"Krane\"(BGB D 6)",{"$f":"IF(Gefährdungsbeurteilung!A198=\"x\",\"Ja\",\"Nein\")","v":"Ja"},"AG seitig"]
[247,"Beantragung für Fahrer/innen von Gabelstaplern in innerbetrieblichen Werkverkehr",{"$f":"IF(Gefährdungsbeurteilung!A199=\"x\",\"Ja\",\"Nein\")","v":"Nein"},"AG seitig"]
[248,"Selbstverwaltung und Organisation der Berufsgenossenschaft der Bauwirtschaft",{"$f":"IF(Gefährdungsbeurteilung!#REF!=\"x\",\"Ja\",\"Nein\")","v":{"$error":"#REF!"}},"AG seitig"]
[249,"Versicherungsschutz",{"$f":"IF(Gefährdungsbeurteilung!#REF!=\"x\",\"Ja\",\"Nein\")","v":{"$error":"#REF!"}},"AG seitig"]
[250,"Mitgliedschaft und Finanzierung",{"$f":"IF(Gefährdungsbeurteilung!#REF!=\"x\",\"Ja\",\"Nein\")","v":{"$error":"#REF!"}},"AG seitig"]
[251,"Rehabilitation - Rehabilitationsmaßnahmen und finanzielle Absicherung während der Rehabilitation",{"$f":"IF(Gefährdungsbeurteilung!#REF!=\"x\",\"Ja\",\"Nein\")","v":{"$error":"#REF!"}},"AG seitig"]
[252,"Renten - Pflegegeld - Beihilfen - Abfindungen",{"$f":"IF(Gefährdungsbeurteilung!#REF!=\"x\",\"Ja\",\"Nein\")","v":{"$error":"#REF!"}},"AG seitig"]
[253,"Arbeitssicherheit und Gesundheitsschutz - die Prävention",{"$f":"IF(Gefährdungsbeurteilung!A204=\"x\",\"Ja\",\"Nein\")","v":"Nein"},"AG seitig"]
[254,"ASD der BG Bau - Arbeitsmedizinisch-Sicherheitstechnischer Dienst der Berufsgenossenschaft der Bauwirtschaft",{"$f":"IF(Gefährdungsbeurteilung!#REF!=\"x\",\"Ja\",\"Nein\")","v":{"$error":"#REF!"}},"AG seitig"]
[255,"Verantwortung für Arbeitssicherheit und Gesundheitsschutz",{"$f":"IF(Gefährdungsbeurteilung!#REF!=\"x\",\"Ja\",\"Nein\")","v":{"$error":"#REF!"}},"AG seitig"]
[256,"Sicherheitsbeauftragte (Bestellung/Aufgaben)",{"$f":"IF(Gefährdungsbeurteilung!A205=\"x\",\"Ja\",\"Nein\")","v":"Ja"},"AG seitig"]
[257,"Schutzalterbestimmungen",{"$f":"IF(Gefährdungsbeurteilung!#REF!=\"x\",\"Ja\",\"Nein\")","v":{"$error":"#REF!"}},"AG seitig"]
[258,"Anschlagseile - Fasereinlagen, Seilklassen 6x19 und 6x36 Tragfähigkeitstabellen",{"$f":"IF(Gefährdungsbeurteilung!#REF!=\"x\",\"Ja\",\"Nein\")","v":{"$error":"#REF!"}},"AG seitig"]
[259,"Anschlagketten Güterklasse 2 - Tragfähigkeitstabellen",{"$f":"IF(Gefährdungsbeurteilung!#REF!=\"x\",\"Ja\",\"Nein\")","v":{"$error":"#REF!"}},"AG seitig"]
[260,"Anschlagketten Güterklasse 4 - Tragfähigkeitstabellen",{"$f":"IF(Gefährdungsbeurteilung!#REF!=\"x\",\"Ja\",\"Nein\")","v":{"$error":"#REF!"}},"AG seitig"]
[261,"Anschlagketten Güterklasse 8 - Tragfähigkeitstabellen",{"$f":"IF(Gefährdungsbeurteilung!#REF!=\"x\",\"Ja\",\"Nein\")","v":{"$error":"#REF!"}},"AG seitig"]
[262,"Chemiefaserhebebänder - Tragfähigkeitstabellen",{"$f":"IF(Gefährdungsbeurteilung!#REF!=\"x\",\"Ja\",\"Nein\")","v":{"$error":"#REF!"}},"AG seitig"]
[263,"Arbeitsraumbreiten in Leitungsgräben und Baugruben",{"$f":"IF(Gefährdungsbeurteilung!#REF!=\"x\",\"Ja\",\"Nein\")","v":{"$error":"#REF!"}},"AG seitig"]
[264,"Mindestlichtmaße für Arbeiten in Rohrleitungen",{"$f":"IF(Gefährdungsbeurteilung!#REF!=\"x\",\"Ja\",\"Nein\")","v":{"$error":"#REF!"}},"AG seitig"]
[265,"Beantragung von Erdbaumaschinenführern/innen",{"$f":"IF(Gefährdungsbeurteilung!#REF!=\"x\",\"Ja\",\"Nein\")","v":{"$error":"#REF!"}},"AG seitig"]
[266,"Bestellung von einer \"zur Prüfung befähigten Person\"",{"$f":"IF(Gefährdungsbeurteilung!#REF!=\"x\",\"Ja\",\"Nein\")","v":{"$error":"#REF!"}},"AG seitig"]
[267,"Prüfprotokoll für Ersteller/in von Gerüsten - Benutzungsplan/Kennzeichnung",{"$f":"IF(Gefährdungsbeurteilung!#REF!=\"x\",\"Ja\",\"Nein\")","v":{"$error":"#REF!"}},"AG seitig"]
[268,"Checkliste für Benutzer/innen von Gerüsten",{"$f":"IF(Gefährdungsbeurteilung!#REF!=\"x\",\"Ja\",\"Nein\")","v":{"$error":"#REF!"}},"AG seitig"]
[269,"Prüfprotokolle für fahrbare Arbeitsbühnen/fahrbare Gerüste ",{"$f":"IF(Gefährdungsbeurteilung!#REF!=\"x\",\"Ja\",\"Nein\")","v":{"$error":"#REF!"}},"AG seitig"]
[270,"Die gesetzliche Unfallversicherung",{"$f":"IF(Gefährdungsbeurteilung!#REF!=\"x\",\"Ja\",\"Nein\")","v":{"$error":"#REF!"}},"AG seitig"]
[271,"Fußschutz",{"$f":"IF(Gefährdungsbeurteilung!#REF!=\"x\",\"Ja\",\"Nein\")","v":{"$error":"#REF!"}},"AG seitig"]
[272,"Persönliche Schutzausrüstungen gegen Absturz (PSAgA)",{"$f":"IF(Gefährdungsbeurteilung!#REF!=\"x\",\"Ja\",\"Nein\")","v":{"$error":"#REF!"}},"AG seitig"]
[273,"Kopfschutz",{"$f":"IF(Gefährdungsbeurteilung!#REF!=\"x\",\"Ja\",\"Nein\")","v":{"$error":"#REF!"}},"AG seitig"]
[274,"Atemschutz",{"$f":"IF(Gefährdungsbeurteilung!#REF!=\"x\",\"Ja\",\"Nein\")","v":{"$error":"#REF!"}},"AG seitig"]
[275,"Schutzhandschuhe",{"$f":"IF(Gefährdungsbeurteilung!#REF!=\"x\",\"Ja\",\"Nein\")","v":{"$error":"#REF!"}},"AG seitig"]
[276,"Hautschutz",{"$f":"IF(Gefährdungsbeurteilung!#REF!=\"x\",\"Ja\",\"Nein\")","v":{"$error":"#REF!"}},"AG seitig"]
[277,"Schutzkleidung",{"$f":"IF(Gefährdungsbeurteilung!#REF!=\"x\",\"Ja\",\"Nein\")","v":{"$error":"#REF!"}},"AG seitig"]
[278,"Augen- und Gesichtsschutz",{"$f":"IF(Gefährdungsbeurteilung!#REF!=\"x\",\"Ja\",\"Nein\")","v":{"$error":"#REF!"}},"AG seitig"]
[279,"Gehörschutz",{"$f":"IF(Gefährdungsbeurteilung!#REF!=\"x\",\"Ja\",\"Nein\")","v":{"$error":"#REF!"}},"AG seitig"]
[]
[]
[]
[]
[null,"Erstellt von:","Geprüft von:","Kundenbestätigung:"]
["Datum:"]
["Name:"]
["Firma:"]
["Unterschrift:"]
[]
["Ja = Gefährdung identifiziert, Handeln erforderlich"]
["Nein = Gefährdung identifiziert, Handeln nicht erforderlich"]

{"sheet":"Matrix","index":1,"n_rows":10,"n_cols":9,"rows_kept":10,"cut":false,"hidden":false,"merged":[]}
[]
[]
[]
[]
["Eintrittswahrscheinlichkeit (P)","Schadensausmaß (S)","M Matrix P/S","S1","S2","S3","S4",null,"Risiko (R)"]
["1 = unwahrscheinlich","1 = klein","P1","-","-","D","C",null,"A = Gefährdung muss vermieden werden"]
["2 = gering","2 = mittel","P2","-","D","C","B",null,"B = Gefährdung sollte vermieden werden"]
["3 = möglich","3 = schwer","P3","D","C","B","A",null,"C = Risiko muss soweit technisch möglich begrenzt werden"]
["4 = wahrscheinlich","4 = extrem","P4","D","B","A","A",null,"D = Risiko ist soweit technisch möglich begrenzt"]
[null,null,null,null,null,null,null,null,"- = Keine Kontrollmaßnahme notwendig"]

{"sheet":"Gefährdungsbeurteilung","index":2,"n_rows":212,"n_cols":19,"rows_kept":212,"cut":false,"hidden":false,"merged":[[209,1,209,8],[210,8,211,8],[3,1,3,2],[5,1,5,2],[7,1,7,2],[9,1,9,2],[9,4,9,6],[6,4,7,8],[3,4,3,8],[4,4,4,8],[5,4,5,8],[9,9,9,11]]}
[]
[]
[null,"Baustelle",null,null,"Kostenstelle"]
[]
[null,"Bauleiter",null,null,"Datum"]
[]
[null,"Polier"]
[]
[null,null,null,null,null,null,null,null,null,null,null,null,null,null,null,null,null,null,"- = Keine Kontrollmaßnahme notwendig"]
[null,null,null,null,"Bewertung\n(ohne Maßnahmen)",null,null,null,null,"Bewertung\n(mit Maßnahmen)"]
["Auswah","Bau-\nstein","Tätigkeit",null,"P","S","R","Gefährdungen","Maßnahmen","P","S","R"]
[]
["x","A 001","Organisation des betrieblichen Arbeitsschutzes",null,2,2,"D","Mangelhafte Planung und Organisation","1) Personaleinsatzplanung aufstellen \n\n2) Koordination auf der Baustelle mit AG und Nachunternehmer eintakten\n\n3) Die Baustellenordnung ist einzuhalten und durch jeden AN des Subunternehmers zu bestätigen",1,1,"-"]
["x","A 002","Gefährdungsbeurteilungen",null,3,3,"B","Verstoß gegen Gesetze u. Vorschriften","1) Festlegen des Arbeitsbereiches von Beginn bis Ende der Baumaßnahmen\n\n2) Einzelne Gefährdungen für die aktuelle Arbeitstätigkeit ermitteln \n\n3) Gefährdungen beurteilen und einzelne Risiken bewerten \n\n4) Schutzmaßnahmen festlegen und Personal darauf hinweisen\n\n5) Festgelegte Schutzmaßnahmen umsetzen \n\n6) Wirksamkeit regelmäßig prüfen und ggf. neu festlegen/Personal unterweisen",2,2,"D"]
["x","A 003","Koordination von Fremdunternehmen bei Zusammenarbeit",null,2,2,"D","gegenseitige Gefährdung durch fehlende Abstimmung","1) Einbindung der Nachunternehmer in die Gesamtarbeitsabläufe der Baustelle \n\n2) Unterstützung und Abstimmung bei der Gefährdungsbeurteilung – Berücksichtigung betriebsbed. und bes. Gefahren \n\n3) Gemeinsame Nutzung von Baustelleneinrichtungen (z.B. Sanitärcont., EH-Einrichtungen, etc.).",1,2,"-"]
["x","A 004","Organisation der \"Ersten Hilfe\"",null,3,3,"B","Mangelhafte Planung und Organisation","1) Ersthelfer in ausreichender Anzahl bereitstellen \n\n2) Aushang auf der Baustelle mit allen wichtigen Notfallnummern sichtbar anbringen\n\n3) Meldeeinrichtung in Erfahrung bringen und ebenfalls sichtbar für alle Mitarbeiter auf der Baustelle anbringen\n\n4) Erste Hilfe Material auf der Baustelle gut sichtbar und im Nofall schnell erreichbar bereitstellen\n\n5) Wenn nötig,Transportmittel bereitstellen\n\n5) Sanitätsraum wenn möglich zur Verfügung stellen (falls nicht möglich, z. B. Krankenliege bereitstellen)\n",1,2,"-"]
[null,"A 005","Rettungsgeräte/Rettungstransportmittel",null,null,null,null,"Mangelhafte Planung und Organisation","1) Rettungskörbe vor Ort vorhalten bei Baustellen mit z. B. Ausschachtungsarbeiten\n   \n2) Tragewannen bereitsstellen\n\n3) Marinetragen bereitstellen (nach Erfordernis)\n\n4) Atemschutz  bereitstellen für Arbeiten, bei denen z. B. giftige Stoffe eingeatmet werden könnten oder ein Feuer ausbricht\n\n5) Abseilgeräte für Arbeiten in der Tiefe \n\n6) Rettungshubgeräte bereitstellen\n\n7) Rettungsboote und Rettungsringe bereitstellen für Arbeiten in Wassernähe\n\n8) Schwimmwesten  bereitstellen für Arbeiten in Wassernähe\n\n9) Löschdecken, etc. - nach Art des Bauvorhabens/ der auszuführenden Arbeit auswählen"]
["x","A 006","Sicherheits- und Gesundheitsschutzkennzeichnung, Flucht- und Rettungsplan",null,3,2,"C","Fluchtwege nicht erkennbar, keine Gesundheitsschutzmaßnahmen rechtzeitig auszuführen","1) Sichtbar an notwendigen Einrichtungen der Baustelle anbringen\n\n2) Flucht- und Rettungsplan erstellen und auf Baustelle aushängen\n\n3) Fluchtwege gemäß Fluchtwegeplan anbringen\n\n4) Falls erforderlich Evakuierungssystem errichten",2,1,"-"]
["x","A 008","Verkehrszeichen an Straßen",null,3,2,"C","Gefährdung durch fließenden Verkehr","1) verkehrsrechtliche Anordnung über Art und Umfang der Baustellensicherung bei der zuständigen Behörde, z. B. Straßenverkehrsbehörde, einholen. Evtl. Schulung nach MVAS notwendig.",2,1,"-"]
["x","A 021","Brandschutz",null,3,3,"B","Mangelhafte Planung und Organisation","1) Unterweisung aller auf der Baustelle tätigen Personen\n \n2) Feuerlöscher in ausreichender Anzahl einplanen, ggfs. Erlaubnisscheinverfahren für Heißarbeiten / Rauchen. ggfs. Rauchererlaubnis beantragen.",2,1,"-"]
["x","A 022","Arbeitsräume",null,4,2,"B","Körperliche Belastung","1) Ausreichende Mindestraumtemperatur herstellen\n\n2) Es müssen genügend Fensterflächen vorhanden sein\n\n3) Die Beleuchtung muss die erforderliche Stärke haben und keine Störungen aufweisen (flakern, flimmern)\n\n4) Alkoholfreie Getränke stellen, siehe auch Arbeitsstättenverordnung",2,1,"-"]
[null,"A 023","Bildschirmarbeitsplätze",null,null,null,null,"Sehverhältnisse","1) Der Sehabstand zum Bildschirm beträgt 45-60 cm \n\n2) Die Blickrichtung auf den Bildschirm parallel zum Fenster \n"]
["x","A 024","Künstliche Beleuchtung auf Baustellen",null,4,3,"A","Stolper- Rutsch-, Sturzgefahr, Kollisionsgefahr","1) Die Anordnung von Leuchten (Anzahl, Art ,Typ) \n\n2) Die Auswahl der Leuchten erfolgt aufgrund der erforderl. Beleutungsstärke [Lux]\n\n3) Mittlere Beleuchtungsstärke E=20 LUX im Hoch- und Tiefbau (Stahl- und Metallbau) einhalten",2,1,"-"]
["x","A 025","Unterkünfte auf Baustellen",null,3,3,"B","Mangelhafte Planung und Organisation, fehlende Hygiene, Gesundheitsschädigungen","1) Tagesunterkünfte müssen bereitgestellt werden\n\n2) Toiletten in Form von Dixie Kabinen oder Sanitärcontainer zusätzlich vorhalten\n\n3) Waschräume ( beheizbar ) vorhalten\n\n4) Die regelmäßige Reinigung (Regelung bei NU) muss aus hygienischen Grüden gewährleistet sein\n\n5) Nichtraucherschutz durch Rauchverbot",2,1,"-","XXX"]
["x","A 026","Verkehrswege auf Baustellen",null,4,4,"A","Stolpern, stürzen, und erfasst werden","1) Unterweisung der Mitarbeiter und Begehung des Arbeitsbereiches\n \n2) Sicherheitsabstände beachten \n\n3) bauliche Trennung verschiedener Bereiche erstellen\n \n4) Rückwärtsfahrten durch Verkehrswegeplanung vermeiden \n\n5) Einweiser bei Rückwärtsfahrt bereitstellen\n\n6) Verkehrswege und Fluchtwege freihalten / sauber halten\n\nBodenöffnungen schließen",2,1,"-"]
[null,"A 027","Verkehrswege auf Dächern",null,null,null,null,"Absturz","1) Betriebsanweisung an alle Mitarbeiter \n\n2) Unterweisung  der Mitarbeiter\n\n3) Unterlage für spätere Arbeiten"]
["x","A 030","Lärm",null,4,3,"A","Lärm","1) Gehörschutz für alle Mitarbeiter im betreffenden Bereich\n\n2) Erlaubter Lärmpegel senken und einhalten",2,1,"-"]
["x","A 041","Gefahrstoffe",null,3,4,"A","Gefahrstoffe \nG","1) Kennzeichnung muss enthalten: \n\n- Bezeichnung d. Stoffes (Zubereitung)  \n- Gefahrensymbol \n- Gefahrenhinweise  \n- Sicherheitsratschläge  \n- Hersteller \n- Importeur \n- Lieferant, siehe 2.4 FA 30 Umgang mit Gefahrstoffen.",2,2,"D"]
["x","A 042","Gefahrstoffe",null,3,4,"A","Gefahrstoffe\nG","1) Sicherheitshinweise gemäß den Herstellerangaben beachten",2,2,"D"]
[null,"A 043","Biologische Arbeitsstoffe",null,null,null,null,"Gefahrstoffe \nG","1) siehe 04b280 BA Arbeiten Abwasser"]
[null,"A 061","Gaslagerbehälter auf Baustellen",null,null,null,null,"Brand / Explosion","1) Betriebsanweisung auf Baustelle hinterlegen \n"]
[null,"A 062","Lagerräume für brennbare Flüssigkeiten",null,null,null,null,"Gefahrstoffe \nG","1) siehe 04b250-V01 Lagermengen"]
["x","A 063","Lagerung von Druckgasflaschen in Gebäuden",null,3,4,"A","Brand / Explosion","1) Druckregler regelmäßig überprüfen\n\n2) Nur gasdichte Schlauchanschlüsse / - verbindungen  verwenden\n\n3) Flammüberwachung \n\n4) Flaschen nur stehend lagern \n\n5) gegen Umfallen und Herabfallen sichern \n\n6) Flaschen nicht werfen oder fallen lassen \n\n7) Flaschen nicht über den Boden rollen",1,1,"-"]
["x","A 064","Lagerung von Druckgasflaschen im Freien",null,3,4,"A","Brand / Explosion","1) Keine Lagerung in Arbeitsräumen und unter Erdgleiche  \n\n2) Luftaustausch sicherstellen \n\n3)Flaschen möglichst stehend lagern \n\n4) Feuerlöscher muss  leicht erreichbar \n",1,1,"-"]
[null,"A 064","Transport von Druckgasflaschen",null,null,null,null,"Brand / Explosion","1) Betriebsanweisung aushängen und beachten\n\n2) Transportgestell/Gitterbox benutzen, nur mit aufgeschraubter Schutzkappe transportieren \n\n3) Gefahrgutverordnung beachten\n\n4) Lüftungsöffnungen in Fahrzeugen"]
[null,"A 066","Holzlager",null,null,null,null,"Absturz, Umkippen","1) Stapelarbeiten nur von unterwiesenen Personen auf tragfähigem Untergrund \n\n2) Stapel nach Regenfällen und Sturm regelmäßig auf Standsicherheit überprüfen"]
["x","A 067","Kraftfahrzeugbetrieb",null,3,3,"B","Erfasst und getroffen werden","1) bei Rückwärtsfahrt mit unzureichenden Sichtverhältnissen nach hinten einen Einweiser beauftragen  \n\n2) Einweiser im Sichtbereich des Fahrers\n\n3) Rückwärtsfahren nur in erlaubten Bereichen, wenn möglich Baustellenumfahrt benutzen",2,1,"-","XXXX"]
["x","A 069","Transport von Baumaschinen",null,3,3,"B","Unkontrolliert bewegte Teile, Umkippen","1) Ladungssicherung vornehmen\n\n2) Hebezeugeinsatz festlegen \n\n3) Nur geeignete Lastaufnahmeeinrichtungen verwenden + geprüfte und zugelassene, geeignete Lastenaufnahmeeinrichtungen verwenden\n\n4) Auf tragfähigen Untergrund achten und einen Einweiser bereitstellen",2,1,"-"]
["x","A 070","Ladungssicherung",null,3,4,"A","Unkontrolliert bewegte Teile","1) Ladungssicherung vornehmen\n\n2) Hebezeugeinsatz festlegen \n\n3) Nur geeignete Lastaufnahmeeinrichtungen verwenden + geprüfte und zugelassene, geeignete Lastenaufnahmeeinrichtungen verwenden\n\n4) Auf tragfähigen Untergrund achten und einen Einweiser bereitstellen",2,1,"-"]
["x","A 139","Sicherung von Arbeitsstellen an Straßen",null,3,3,"B","Erfasst und getroffen werden","1) Abgrenzung von Arbeitsplätzen und Verkehrswegen \n\n2) Einweiser bei Sichtbehinderung / Rückwärtsfahrt \n\n3) Sicherheitsabstände einhalten",2,1,"-"]
["x","B 100","Absturzsicherungen auf Baustellen",null,4,4,"A","Absturz","1) Aufsicht durch fachlich geeignete Vorgesetzte\n \n2) Unterweisung aller Mitarbeiter vornehmen\n\n3) 3- teiliger Seitenschutz anbringen, Klasse S 10\n\n4) Ein Fanggerüst montieren\n\n5) Eventuell Arbeitskorb bereitstellen\n\n6) Anseilschutz anbringen, PSA gegen Absturz\n\n7) Öffnungen müssen abgedeckt werden, Umwehren und eventuell einen Seitenschutz hergestellt werden",3,3,"B"]
[null,"B 101","Dachschutzwände",null,null,null,null,"Fehlende Sicherungsmaßnahmen beim Auf- bzw. Abbau, nicht sachgerechter Befestigung sowie Ausführung von Dacharbeiten außerhalb des zulässigen Arbeitsbereiches können zu Absturzunfällen führen.","1) Beschäftigte, die Schutzwände montieren, müssen gegen Absturz gesichert sein, z. B. durch Anseilschutz\n\n2) PSA gegen Absturz nur an geeigneten Anschlageinrichtungen befestigen.\nAnschlagmöglichkeiten an Teilen baulicher Anlagen können zur Befestigung genutzt werden, wenn deren Tragkraft für eine Person nach den technischen Baubestimmungen von 9 kN einschließlich den für die Rettung anzusetzenden Lasten nachgewiesen ist\n\n3) Vorhandene Anschlageinrichtungen müssen vor der Benutzung auf ihre Tragfähigkeit überprüft werden\n\n\n4) Der Vorgesetzte hat die Anschlageinrichtungen festzulegen und dafür zu sorgen, dass die PSA gegen Absturz benutzt werden\n\n5) Befestigung von Dachschutzwänden an Sicherheitsdachhaken nur nach AuV des Herstellers\n\n6) Dachschutzwände müssen die zu sichernden Arbeitsplätze seitlich um mindestens \n1,00 m überragen "]
[null,"B 102","Schutznetze",null,null,null,null,"Fehlende, beschädigte oder mangelhaft aufgehängte Schutznetze sowie fehlende Sicherungsmaßnahmen bei der Montage können Absturzunfälle zur Folge haben","1) Nur geprüfte und dauerhaft gekennzeichnete und unbeschädigte Schutznetze vom System S (Netze mit Randseil) verwenden\n\n2) Schutznetze nur einsetzen, wenn die Prüfung der Alterung nicht länger als 1 Jahr zurückliegt\n\n3) Als Absicherung nur Schutznetze mit einer Maschenweite von höchstens 10 cm benutzen\n\n4) Für Schutznetze muss eine Gebrauchsanleitung auf der Baustelle vorhanden sein\n\n5) Schutznetze sind möglichst unterhalb der zu sichernden Arbeitsplätze aufzuhängen"]
[null,"B 103","Dachdeckerstühle/Auflegeleitern/Sicherheits- dachhaken",null,null,null,null,"Absturz","1) Für Arbeiten >45° geneigten Fläche sind besondere Arbeitsplätze unabhängig von den erforderlichen Absturzsicherungen. >45° geneigte Flächen können z. B. betonierte, geschalte oder eingedeckte Dachflächen sein."]
[null,"B 104","Flachdach - Absturzsicherungssysteme",null,null,null,null,"erfasst und getroffen werden","1) Betriebsanweisung, nicht im Gefahrenbereich aufhalten\n \n2) Nicht unter die Last treten \n\n3) Tritte sauber halten \n\n4) Standsicherer Untergrund herstellen\n\n5) Sicherheitsabstände zu elektrischen Freileitungen beachten\n"]
[null,"B 106","Transportable Silos",null,null,null,null,"Absturz","1) Betriebsanweisung auf Baustelle hinterlegen\n \n2) Unterweisung aller Mitarbeiter \n\n3) Nachweis der Fertigstellung erbringen \n\n4) Sichtkontrolle auf Mängel \n\n5) Veränderungen am Gerüst nur durch Gerüsterstheller vornehmen"]
[null,"B 111","Fanggerüste",null,null,null,null,"Absturz, Herunterfallen von Teilen, herabfallende Gegenstände","1) Sichtkontrolle auf Mängel vornehmen\n\n2)Fanggerüst muss frei von Materialien sein\n\n3) Absturzhöhe bis 2 m = Mindestbreite 0,90 m \n\n4) Absturzhöhe bis 3 m = Mindestbreite 1,30 m "]
[null,"B 112","Fahrbare Arbeitsbühnen",null,null,null,null,"Absturz, Herunterfallen von Teilen, herabfallende Gegenstände","1) Stahlrohrkupplungsgerüste nach DIN 4420 (Regelausführung) \n\n2) Systemgerüste aus vorgefertigten Bauteilen (Bauaufsichtliche Zulassung)"]
["x","B 113","Fassadengerüste",null,4,4,"A","Absturz, herabfallende Gegenstände","1) Außerhalb der Baustelle: wenn sich der Gefahrenbereich nicht abgrenzen lässt \n\n2) Innerhalb der Baustelle: über Arbeitsplätzen und Verkehrswegen bei turmartigen Bauwerken \n\n3) bei gleichzeitig durchzuführenden Arbeiten an übereinander gelegenen Arbeitsplätzen",3,3,"B"]
[null,"B 114","Schutzdächer",null,null,null,null,"Absturz, herabfallende Gegenstände","1) Betriebsanweisung auf Baustelle hinterlegen\n\n2) Nachweis erforderlich \n"]
[null,"B 115","Gerüste für den Schornsteinbau",null,null,null,null,"Absturz","1) Betriebsanweisung auf Baustelle hinterlegen\n\n2) Belagbreite: >50, <90cm \n\n3) Aufstiege Innenleitern mit PSA benutzen\n\n4) Durchstiege spezielle Belagtafeln mit Klappe \n\n5) Jeden Leiterzug mit dem Bauwerk zug- und druckfest verankern \n\n6) senkrechter Abstand  Verankerungspunkte <4m \n\n7) Freigabe/Prüfprotokoll vorweisen"]
[null,"B 116","Leitergerüste an Fassaden",null,null,null,null,"Absturz","1) Anlegeleiter als Aufstieg verwenden\n \n2) der Abstand der Gerüstböcke richtet sich nach Bohlenstärke + Belastung, ab 2 m Seitenschutz"]
[null,"B 117","Bockgerüste",null,null,null,null,"Absturz","1) Auslegergerüste DIN 4420 als Regelausführung oder mit Nachweis der Brauchbarkeit (statischer Nachweis) \n\n2) Auskragung max.1,3 m, Auflagerabstand max. 1,5 m \n\n3) Freigabe veranlassen und Prüfprotokolle auf Baustelle hinterlegen\n\n4) Freigabeschein anbringen"]
[null,"B 118","Auslegergerüste",null,null,null,null,"Absturz","1) Aufbau nach Montageanweisung des Herstellers, Montageanweisung vorhalten\n\n2) Leitung durch fachlich geeigneten Vorgesetzten \n\n3) Regelmäßige Prüfpflicht einhalten"]
["x","B 120","Traggerüste",null,4,4,"A","Absturz","\n1) max. Höhenunterschied Absturzkante (Traufe) /Gerüstbelag <1,50 m \n\n2) Mindestbelagbreite 0,6m \n\n3) Schutzwände Dachfanggerüste aus tragfähigen Netzen (mit Zulassung)\n\n4) Maschenweite <10 cm (keine Beschädigungen der Netze, täglich prüfen)",3,2,"C"]
[null,"B 121","Dachfanggerüste",null,null,null,null,"Absturz, herabfallende Teile","1) Hängegerüste DIN 4420 als Regelausführung oder Nachweis der Brauchbarkeit\n \n2) Planen/Netze berücksichtigen \n\n3) Freigabe/Prüfprotokoll vorweisen"]
["x","B 122","Hängegerüste",null,4,4,"A","Absturz","1) Aufbau- und Verwendungsanleitung beachten, Zulassung auf Baustelle vorhalten\n\n2) Unterweisung aller Mitarbeiter\n\n3) Zusätzlich PSA gegen Absturz benutzen",3,2,"C"]
[null,"B 131","Anlegeleitern",null,null,null,null,"Absturz","1) Nicht auf andere Arbeitsplätze übersteigen \n\n2) Oberste Sprosse nicht besteigen \n\n3) Standsicher aufstellen\n\n5) 1,00 m Überstand"]
[null,"B 132","Stehleitern",null,null,null,null,"Absturz","1) nur Steigeinrichtungen (Steigleitern, Steigeisengänge) mit Steigschutz benutzen\n \n2) Ruhebühnen in Abständen <25m \n\n3) Gleit-/ Kletterschalungen absturzsicheren Übergang zur Steigleiter herstellen\n\n4) Nicht für ständige Arbeiten benutzen\n"]
[null,"B 133","Steigleitern",null,null,null,null,"Unkontrollierte bewegte Teile, Absturz","1) Aufbau- und Verwendungsanleitung beachten\n \n2) Unterweisung aller Mitarbeiter\n\n3) Belagbreite von Betoniergerüsten min. 0,60 m \n\n4) Absturzsicherung herstellen\n \n5) richtige Verankerung herstellen und überprüfen"]
["x","B 134","Wand- und Stützenschalung",null,3,4,"A","Unkontrolliert bewegte Teile, Umfallen, Aufreißen der Schalung während der Betonage","1) Betriebsanweisung gut sichtbar auf Baustelle hinterlegen\n\n2) Unterweisung aller Mitarbeiter durchführen \n\n3) Gefahrenbereich hinreichend absperren\n\n4) Schalung vor Betonage überprüfen (Schalungsanker richtig fixiert?)",2,1,"-"]
[null,"B 141","Schwenkarmaufzüge",null,null,null,null,"Unkontrolliert bewegte Teile, Absturz der angehenden Lasten","1) Betriebsanweisung auf Baustelle hinterlegen\n"]
[null,"B 142","Anlegeaufzüge",null,null,null,null,"Unkontrolliert bewegte Teile, herabfallende Teile","1) Betriebsanweisung auf Baustelle gut sichtbar hinterlegen \n \n2) Unterweisung aller auf der Baustelle tätigen Mitarbeiter\n\n3) Anlegeaufzug gegen Umkippen sichern \n\n4) Keine Personentransporte\n\n5) Laten bei Transport fixieren"]
[null,"B 143","Anstellaufzüge",null,null,null,null,"Unkontrolliert bewegte Teile","1) Betriebsanweisung auf Baustelle gut sichtbar hinterlegen \n \n2) Unterweisung aller auf der Baustelle tätigen Mitarbeiter\n\n3) Anlegeaufzug gegen Umkippen sichern \n\n4) Keine Personentransporte\n\n5) Laten bei Transport fixieren\n\n6) Anlegeaufzug gegen Umkippen sichern \n\n7) Keine Personentransporte\n\n8) Laten bei Transport fixieren"]
["x","B 145","Bauaufzüge mit Personenbeförderung",null,3,3,"B","Unkontrolliert bewegte Teile, Stillstand bei Stromausfall","1) Betriebsanweisung auf Baustelle hinterlegen\n\n2) Aufzug nur mit max. festgelgeten Lasten bedienen\n",2,1,"-"]
["x","B 146","Diesel-Tankanlagen auf Baustellen",null,4,4,"A","Gefahrenstoffe","1) Auffangwanne herstellen\n\n2) Aufstellfläche fest und eben herstellen \n\n3) Abstand zum nächsten Gebäude min. 10 m \n\n4) Feuerlöscher gut erreichbar und griffbereit halten \n\n5) Bindemittel vorhalten",2,1,"-"]
[null,"B 147","Personenförderkörbe",null,null,null,null,"Absturz, Alleinarbeitsplatz, Anstoßen","1) Schriftliche Sicherheitsmaßnahmen festlegen \n\n2) Einsatz ist der BG anzuzeigen \n\n3) Arbeitsbeschränkungen beachten"]
["x","B 161","Lastaufnahmemittel im Hochbau",null,3,4,"A","Unkontrolliert bewegte Teile, Versagen durch zu hohe Lastaufnahme","1) Lastaufnahmemittel sicher anschlagen und verfahren \n\n2) Lose Teile beim Transport sichern \n\n3) Anschlagmittel bestimmungsgemäß verwenden \n\n4) Tragfähigkeit beachten\n\n5) Ablegereife LAM entsorgen oder in Frist überprüfen",2,1,"-"]
["x","B 164","Anschlagen von Lasten",null,3,4,"A","Berühren spannungführender Teile","1) Das Errichten sowie das  Instandsetzen nur durch Elektrofachkräfte \n\n2) Überwachen von Prüffristen \n\n3)  Sicherheitsregeln beachten",2,2,"D"]
[null,"B 171","Elektrische Anlagen und Betriebsmittel auf Bau- und Montagestellen",null,null,null,null,"Berühren spannungführender Teile, Brand bei fehlerhaftem Anschluss","1) Prüfung der Baustromverteiler jeden Monat durch Elektrofachkraft durchführen\n\n2) FI - Prüfung arbeitstäglich vor Arbeitsbeginn durchführen\n\n3) Sicherheitsregeln beachten"]
[null,"B 172","Elektrische Anlagen und Betriebsmittel",null,null,null,null,"Lärm, Abgase, spannungsführende Teile","1) Nur geprüfte Geräte einsetzen \n\n2) Standsicher aufstellen nach Betriebsanleitung, im Freien Schutzart IP 54, bei \"Schutztrennung\" nicht erden!  Abgase ins Freie leiten - kein Einsatz in geschlossenen Räumen"]
[null,"B 173","Mobile Ersatzstromerzeuger, z. B. Aggregate",null,null,null,null,"Umkippen, Brand, fehlerhafte Benutzung","1) Stromerzeuger standsicher aufstellen\n\n2) Betriebsanleitung am Einsatzort bereithalten\n\n3) Nur fristgemäß (halbjährlich) geprüfte Geräte einsetzen\n\n4) Bei Verwendung im Freien Geräte mindestens der Schutzart IP 54 einsetzen"]
["x","B 181","Bagger",null,4,4,"A","Umkippen, erfasst und getroffen/überfahren werden, stolpern, rutschen, stürzen, berühren von elektrischen Anlagen","1) ebene Standflächen und Fahrwege herstellen\n\n2) lastverteilende Elemente (z.B. Baggermatratzen) benutzen \n\n3) Nicht im Gefahrenbereich aufhalten \n\n4) nicht unter die Last treten \n\n5) Tritte sauber halten \n\n6) Sichtfeld vor Schwenkarbeiten überprüfen  \n\n7) Sicherheitsgurte benutzen\n\n8) Sicherheitshelme im Schwenkbereich benutzen",3,3,"B"]
["x","B 182","Lader/Muldenfahrzeuge/Planiergeräte",null,4,4,"A","erfasst und getroffen/überfahren werden, stolpern, rutschen, stürzen, Umsturz","1) Nicht im Gefahrenbereich aufhalten\n\n2) Nicht schräg zum Hang fahren\n\n3) Bergseitig benutzen\n\n4) Warnkleidung tragen\n\n5) Anschnallen",3,3,"B"]
[null,"B 183","Rammen",null,null,null,null,"Räumliche Enge von Mensch/Maschine, Lärm, Lasten, Baugrund","1) Unterweisung des Ramm-Personals in Maschine und Baustelle\n  \n2) nicht unmittelbar beteiligtes Personal über Gefährdungen d. Ramme unterweisen  \n\n3) Baugrund erkunden \n\n4) Gefährdungsbeurteilung für Arbeitsverfahren"]
["x","B 184","Bohrgeräte im Spezialtiefbau",null,4,4,"A","räuml. Enge v. Mensch-Maschine, Lärm, Lasten, Baugrund","1) Unterweisung des Bohr-Personals in Maschine und Baustelle \n\n2) Nicht unmittelbar beteiligtes Personal über Gefährdungen d. Bohrgerätes unterweisen \n\n3) Baugrund erkunden, ggf. Baugrundgutachter bei fehlenden Angaben kontaktieren\n\n4) Arbeitsbereiche absperren\n\n5) Sicherheitsabstände absperren",2,2,"D"]
[null,"B 185","Straßenwalzen",null,null,null,null,"erfasst und getroffen/überfahren werden, stolpern, rutschen, stürzen, heiße Oberflächen","1) nicht im Gefahrenbereich aufhalten \n\n2) Zugänge und Podeste trittsicher machen\n\n3) Warnkleidung im Gefahrenbereich von Maschinen tragen"]
[null,"B 186","Asphalt-Straßenfertiger",null,null,null,null,"erfasst und getroffen/überfahren werden, stolpern, rutschen, stürzen, Umkippen, Staub","1) nicht im Gefahrenbereich aufhalten \n\n2) Wasserberieselung\n\n3) regelm. Überprüfung Schutzeinrichtungen"]
[null,"B 187","Straßenfräsen",null,null,null,null,"Unkontrolliert bewegte Teile, Absturz, herbafallendes Material (Fräsgut)","1) Verwendungsanleitungen beachten, Unterweisung aller Mitarbeiter\n\n2) Verkehrssicherung beachten\n\n3) Transport: Einsatz von Leitseilen bei starken Wind\n\n4) Im Gefahrenbereich Schutzhelme tragen"]
["x","B 189","Grabenverbaugeräte",null,4,4,"A","Absturz","1) Aufbau- und Verwendungsanleitung beachten \n\n2) Belagbreite von Konsolgerüsten max. 1, 30 m \n\n3) Konsolfüße im Bereich von Wandöffnungen auf Holzbalken abstützen \n\n4) Brauchbarkeitsnachweis erforderlich",2,2,"D"]
[null,"B 201","Konsolgerüste",null,null,null,null,"abgenutzte, ungeeignete Werkzeuge","1) Beschädigte Handwerkszeuge sofort dem Gebrauch entziehen und fachgerecht reparieren \n \n2) passendes Werkzeug benutzen"]
["x","B 202","Handwerkzeuge",null,3,2,"C","ungeschützt bewegte Maschinenteile","1) Betriebsanweisung beachten und Mitarbeiter unterweisen\n\n2) Werkzeuge Bestimmungsgemäß verwenden, ggf. zusätzliche PSA tragen",2,1,"-","XXXX"]
[null,"B 203","Glättmaschinen",null,null,null,null,"ungeschützt bewegte Maschinenteile, Lärm, Staub, spritzender Mörtel","1) Betriebsanweisung auf Baustelle hinterlegen\n\n2) Schutzbrille tragen\n\n3) Gehörschutz tragen"]
["x","B 204","Mörtelspritz- und Mörtelfördermaschinen",null,3,4,"C","Nicht abgedeckte Einfüllöffnungen und unkontrollierter Mörtelaustritt bei Verstopfern können zu Verletzungen führen.\nEin hoher Lärmpegel kann zu Gehörschädigungen führen.","1) Bewegte Maschinenteile müssen gegen Berühren geschützt sein, Schutzhaube vor \nInbetriebnahme schließen.\n\n2) Einfüll- und Auslauföffnungen müssen mit Gitterrosten abgedeckt sein. Beim Nachrüsten Sicherheitsabstände einhalten (Tabelle).\n\n3) Beim Öffnen der Gitterabdeckung müssen Rührwerk und Förderschnecke zwangsläufig stillgesetzt und gegen Wiederanlaufen gesichert sein, sofern die Gitterabdeckung nicht fest verschraubt ist.\n\n4) Maschinen standsicher aufstellen. Abgase von Verbrennungsmotoren dürfen nicht in den Arbeitsbereich der Beschäftigten gelangen. Evtl. Abgasrohre verlängern.\n\n5) Elektrisch angetriebene Maschinen nur über einen besonderen Speisepunkt mit Schutzmaßnahme anschließen, z. B. Baustromverteiler mit FI-Schutzeinrichtung (RCD).\n\n6) Schläuche, Rohre und Kupplungen müssen gekennzeichnet sein und zur Maschine passen. Förderleitungen (Schläuche und Rohre) nur mit gut gesäuberten Sicherheitskupplungen verbinden. Dichtungen nicht vergessen.\n\n7) Förderleitungen so führen und verlegen, dass Beschädigungen und Verstopfer vermieden werden. Schläuche nicht über scharfe Kanten ziehen oder abknicken. Krümmungsradius von Rohrleitungen > 6-facher Leitungsdurchmesser.\n\n8) nur an solchen Konstruktionsteilen befestigen, die die durch den Betrieb auftretenden Kräfte aufnehmen können. Schlauchhaken verwenden ",2,1,"-"]
["x","B 206","Schlagbohr- und Stemmgeräte",null,3,3,"B","ungeschützt bewegte Maschinenteile, Lärm, Staub, spritzende Teile","1) Unterweisung aller Mitarbeiter, regelmäßige Überprüfung Schutzeinrichtungen\n  \n2) Gehörschutz bei Abbruch und/oder Stemmarbeiten \n\n3) Augenschutz zur Vermeidung von Verletzugen der Augen (z. B. Staub, Steine usw.)\n\n4) Atemschutz verwenden bei starker Staubentwicklung",2,1,"-"]
["x","B 207","Steinsägen",null,3,3,"B","ungeschützt bewegte Maschinenteile, Lärm, Staub","1) Unterweisung aller Mitarbeiter auf der Baustelle \n\n2) Regelmäßige Überprüfung der  Schutzeinrichtungen \n\n3) Augenschutz verwenden\n\n4) Hilsmittel verwenden\n\n5) Geörschutz verwenden\n\n6) Nur Nassschneideeinrichtungen verwenden",2,1,"-"]
["x","B 211","Gabelstapler",null,3,4,"A","Falsch aufgenommene Last , Überlastung des Gabelstaplers und unzureichende Ausbildung des Fahrers ","1) Betriebsanweisung auf Baustelle hinterlegen\n\n2) Last dicht am Hubmast laden und auch beide Gabelzinken gleichmäßig verteilen. Last gegen verschieben sichern\n\n3) Nur ausgebildete und vom Unternehmer schriftlich beauftragte Gabelstaplerfahrer einsetzen, die mindestens 18 Jahre alt sind",2,2,"D"]
[null,"B 212","Hubarbeitsbühnen",null,null,null,null,"Unkontrolliert bewegte Teile, Überlastung, Standsicherheit","1) Betriebsanweisung auf Baustelle hinterlegen\n\n2) Unterweisung aller Mitarbeiter\n\n3) schriftliche Beauftragung vorhalten\n\n4) Kein Personal im Bereich der Hubarbeitsbühne während Benutzung\n\n5) PSA benutzen"]
["x","B 213","Turmdrehkrane - Aufstellung",null,3,3,"B","Unkontrolliert bewegte Teile, fehlende Standsicherheit, fehlerhafter Aufbau","1) Standsicherheit prüfen\n\n2) Tägliche Sicht- und Funktionsprüfung durchführen \n\n3) Sachkundigenprüfung durchführen lassen und dokumentieren\n\n4) Sachverständigenprüfung durchführen lassen und dokumentieren\n\n5) Aufbaubereiche absperren\n\n6) PSA (Sicherheitshelme und ggf. PSA gegen Absturz) tragen\n",2,2,"D","XXXX"]
["x","B 214","Turmdrehkrane - Betrieb",null,4,4,"A","Unkontrolliert bewegte Teile, fehlende Abstimmung, elektrische Freileitungen","1) Nur geschultes Personal einsetzen (Nachweis durch Kranschein) in Deutschland\n\n2) Nicht unter schwebender Last aufhalten\n\n3) Sicherheitshelme während Betrieb benutzen",3,2,"C"]
["x","B 215","Autokrane",null,4,4,"A","Unkontrolliert bewegte Teile, fehlende Abstimmung, elektrische Freileitungen","1) Bei Rückwärtsfahrt mit unzureichenden Sichtverhältnissen nach hinten einen Einweiser beauftragen \n\n2) Einweiser im Sichtbereich des Fahrers \n\n3) nicht unter schwebender Last aufhalten\n\n4) Sicherheitshelme Tragen",3,2,"C"]
["x","B 216","Betonpumpen und Verteilermaste",null,4,3,"A","Unkontrolliert bewegte Teile, herabfallende Gegenstände, Gefahr im Schwenkbereich","1) Abgrenzung von Arbeitsplätzen und Verkehrswegen\n\n2) Sicherheitsabstände / Gefahrenbereiche einhalten\n\n3) Sicherheitshelme",3,2,"C"]
[null,"B 217","LKW-Ladekrane",null,null,null,null,"Unkontrolliert bewegte Teile, herabfallende Gegenstände, Gefahr im Schwenkbereich","1) nicht im Gefahrenbereich aufhalten \n\n2) Sicherheitsabstände einhalten \n\n3) Kran und Lastaufnahmeeinrichtungen nicht überlasten\n\n4) Helm tragen"]
[null,"B 218","Teleskopstapler",null,null,null,null,"Unkontrolliert bewegte Teile, überfahren werden","1) Betriebsanweisung auf Baustelle hinterlegen\n\n2) Unterweisung aller Mitarbeiter\n\n3) Nicht im Gefahrenbereich aufhalten \n\n4) Nicht überlasten \n\n5) Sicherheitsabstände einhalten\n\n6) Helm tragen"]
[null,"B 219","Hubwagen",null,null,null,null,"Überlastung,  fehlende Standsicherheit","1) Maximale Tragfähigkeit beachten \n\n2) Nicht auf geneigten Flächen einsetzen\n \n3) Material gegen Abrollen und Kippen von der Gabel sichern \n\n"]
[null,"B 231","Flüssiggasanlagen",null,null,null,null,"Brand / Explosion, Umkippen, Überhitzung","1) Betriebsanweisung auf Baustelle hinterlegen\n\n2) Feuerlöscher muss leicht erreichbar und vorhanden sein\n\n3) Gasflaschen gegen Umkippen sichern"]
[null,"B 232","Heizgeräte",null,null,null,null,"Brand / Explosion, Umkippen, Überhitzung","1) Feuerlöscher muss leicht erreichbar und vorhanden sein\n\n2) Fristgerechte Überprüfung durch Fachpersonal\n\n3) Nicht in brandgefährlichen Bereichen benutzen"]
[null,"B 234","Flammgeräte",null,null,null,null,"Beim Umgang mit Flammgeräten besteht Brand- und Explosionsgefahr","1) Einzelflaschen sind mit genormten Flaschenkupplungen zu verbinden\n\n2) An kleinen Batterieanlagen nur einen Flammstrahl-Handbrenner anschließen\n\n3) Gasentnahme nur über zugelassene Druckminderer und bauartgeprüfte trockene Gebrauchsstellenvorlagen\n\n4) Gebrauchsstellenvorlagen direkt hinter dem Druckminderer anbringen\n\n5) Als Schlauchverbindungen nur Schlauchtüllen mit Schlauchschellen oder Patentkupplungen verwenden\n\n6) PSA benutzen während Arbeiten in der Höhe\n\n7) Für ausreichend Belüftung sorgen\n\n8) Gasflaschen gegen Umkippen sichern"]
["x","B 236","Bolzensetzwerkzeuge",null,4,4,"A","ungeschützt bewegte Teile und Maschinenteile, Lärm, Verletzung durch fehlerhafte Nutzung","1) Bolzenschubwerkzeuge mit Zulassungszeichen und gültigem Prüfzeichen \n\n2) Untergrund prüfen, so dass keine Bolzen den Untergrund durchdringen können",2,1,"-"]
[null,"B 237","Mobile Baukompressoren",null,null,null,null," Lärm, Staub","1) Auf funktionsfähige Sicherheitsventile/ Druckmessgeräte (Manometer) achten \n\n2) Sicherheitsventile sind gegen Überschreiten des Betriebsdruckes fest eingestellt und verplombt\n\n3) Gehörschutz in der Nähe tragen"]
[null,"B 238","Hochdruckreiniger",null,null,null,null," Lärm, Abwasser, spritzende Flüssigkeiten und Feststoffe","1) Betriebsanweisung auf Baustelle gut sichtbar hinterlegen\n\n2) Gerät vor Einsatz prüfen \n\n3) Prüfen, ob die austretende Flüssigkeit mit Produktresten auf gefährliche Weise reagieren kann, ggfs. Schutzmaßnahmen treffen \n\n4) nur über besonderen Speisepunkt anschließen, z. B. Baustromverteiler mit Fl-Schutzschalter \n\n5) PSA benutzen, Gehörschutz bei längerer Benutzung"]
[null,"B 239","Farbspritzgeräte",null,null,null,null,"Farbnebel, Druckluft","1) Betriebsanweisung auf Baustelle hinterlegen\n\n2) Schutzbrille tragen\n\n3) Hautschutz benutzen\n\n4) Gehörschutz tragen\n\n5) Atemschutz ggfs. Umwelteinflüsse beachten"]
[null,"B 251","Handbandschleifmaschinen und Vibrationsschleifer",null,null,null,null,"ungeschützt bewegte Maschinenteile, Lärm, Staub","1) Unterweisungaller Mitarbeiter und regelmäßige Überprüfung \n\n2) Schutzeinrichtungen \n\n3) Gehörschutz: Bei Abbruch/ Stemmarbeiten \n\n4) Augenschutz \n\n5) Atemschutz: Bei starker Staubentwicklung oder direktes Absaugen der Stäube"]
["x","B 252","Tisch- und Formatkreissägen",null,4,3,"A","ungeschützt bewegte Maschinenteile, Lärm, Staub","1) Betriebsanweisung auf Baustelle gut sichtbar hinterlegen\n\n2) Unterweisung regelm. Überprüfung Schutzeinrichtungen \n\n3) Schutzhaube bei Nichtbenutzung über Kreisblatt \n\n4) Schiebestock benutzen\n \n5) Trageverbot von Handschuhen\n\n6) Brille\n\n7) Gehörschutz",2,1,"-"]
[null,"B 254","Kappsägen",null,null,null,null,"ungeschütze, bewegte Maschinenteile, Lärm, Staub","1) Betriebsanweisung auf Baustelle hinterlegen\n\n2) Unterweisung aller Mitarbeiter\n\n3) Regelmäßige Überprüfung Schutzeinrichtungen  \n\n4) Richtiger Sitz der Zahnkranzverdeckung \n\n5) Trageverbot von Handschuhen\n"]
[null,"B 255","Bandsägen",null,null,null,null,"ungeschütze, bewegte Maschinenteile, Lärm, Staub","1) Betriebsanweisung auf Baustelle hinterlegen\n\n2) Unterweisung aller Mitarbeiter\n\n3) Regelmäßige Überprüfung Schutzeinrichtungen \n\n4) Höhenverstellbare Sägeblattverdeckung benutzen \n\n5) Trageverbot von Handschuhen\n\n6) Brille\n\n7) Gehörschutz"]
[null,"B 256","Hobelmaschinen",null,null,null,null,"ungeschützt bewegte Maschinenteile, Lärm, Staub","1) Betriebsanweisung auf Baustelle hinterlegen\n\n2) Unterweisung aller Mitarbeiter\n\n3) Regelmäßige Überprüfung Schutzeinrichtungen \n\n4) Messerwelle soweit wie möglich abdecken \n\n5) Auch bei kurzer Unterbrechung abschalten\n\n6) Brille\n\n7) Gehörschutz"]
[null,"B 257","Fräsmaschinen",null,null,null,null,"ungeschützt bewegte Maschinenteile, Lärm, Staub","1) Betriebsanweisung auf Baustelle hinterlegen\n\n2) Unterweisung aller Mitarbeiter und regelmäßige Überprüfung Schutzeinrichtungen \n\n3) Drehzahl von Fräswerkzeug einhalten \n\n4) Auch bei kurzer Unterbrechung abschalten\n\n5) Brille\n\n6) Gehörschutz\n"]
[null,"B 258","Abbundkreissägen/Abbundanlagen",null,null,null,null,"ungeschützt bewegte Maschinenteile, Lärm, Staub","1) Betriebsanweisung \n\n2) Unterweisung  \n\n3) regelm. Überprüfung Schutzeinrichtungen \n\n4) auch bei kurzer Unterbrechung abschalten\n\n5) Brille\n\n6) Gehörschutz"]
[null,"B 259","Handkettensägen",null,null,null,null,"ungeschützt bewegte Maschinenteile, Lärm, Staub, Rückschlaggefahr","1) Unterweisung aller Mitarbeiter\n\n2) Regelmäßige Überprüfung der Schutzeinrichtungen \n\n3) Nach Möglichkeit bei Schal- und Verbauarbeiten und auf Dächern auf Kettensäge vezichten \n\n4) Gerät immer mit 2 Händen bedienen \n\n5) Nicht über Schulterhöhe sägen\n\n6) Brille\n\n7) Gehörschutz\n"]
[null,"B 260","Tischbandschleifmaschinen",null,null,null,null,"ungeschützt bewegte Maschinenteile, Lärm, Staub","1) Betriebsanweisung auf Baustelle hinterlegen\n\n2) Unterweisung aller Mitarbeiter\n\n3) Regelmäßige Überprüfung Schutzeinrichtungen \n\n4) Beschädigte Schleifbänder unverzüglich austauschen\n\n5) Brille\n\n6) Gehörschutz\n"]
[null,"B 261","Untertischkappkreissägen",null,null,null,null,"ungeschützt bewegte Maschinenteile, Lärm, Staub","1) Betriebsanweisung auf Baustelle hinterlegen\n\n2) Unterweisung aller Mitarbeiter\n\n3) Regelmäßige Überprüfung Schutzeinrichtungen \n\n4) Hineingreifen in Schneidebene muss für Bediener verhindert sein\n\n5) Brille\n\n6) Gehörschutz\n"]
[null,"B 263","Kettenstemm-Maschinen",null,null,null,null,"ungeschützt bewegte Maschinenteile, Lärm, Staub","1) Betriebsanweisung auf Baustelle hinterlegen\n\n2) enganliegende Kleidung tragen \n\n3) Gehörschutz benutzen\n\n4) Augenschutz benutzen\n\n5) Brille\n\n6) Gehörschutz"]
[null,"B 264","Schuttrutschen",null,null,null,null,"Absturz, herabfallende Gegenstände","1) Auf- und Abbau Aufbau- nach Verwendungsanleitung der Hersteller durch unterwiesene Personen \n\n2) Gerüstkonstruktionen im Aufhängebereich der Schuttrutsche zus. verankern und verstreben \n\n3) Absturz sichern ab> 2m Fallhöhe\n\n4) >10m zusätzliche Verankerungen der Rutsche\n"]
["x","B 265","Baustellenkreissägen/Handkreissägen",null,4,3,"A","ungeschützt bewegte Maschinenteile, Lärm, Staub","1) Unterweisung aller Mitarbeiter\n\n2) Regelmäßige Überprüfung der Schutzeinrichtungen \n\n3) Augenschutz benutzen\n\n4) Gehöschutz",2,1,"-"]
["x","B 266","Bohrmaschinen",null,3,3,"B","ungeschützt bewegte Maschinenteile, Lärm, Staub, beschädigte Kabel","1) Unterweisung aller Mitarbeiter\n\n2) Regelmäßige Überprüfung der Schutzeinrichtungen \n\n3) Gehörschutz benutzen bei Stemmarbeiten\n\n4) Augenschutz falls notwendig\n\n5) evtl. Atemschutz gegen Staub\n\n6) Bei beschädigten Kabel diese austauschen",2,1,"-"]
[null,"B 269","Metallsägen",null,null,null,null,"ungeschützt bewegte Maschinenteile, Lärm, Staub, Späne, Kühlmittel","1) Betriebsanweisung auf Baustelle hinterlegen\n\n2) Unterweisung aller Mitarbeiter\n\n3) Regelmäßige Überprüfung Schutzeinrichtungen \n\n4) Gehörschutz tragen \n\n5) Augenschutz tragen\n\n6) evtl. Atemschutz tragen\n\n7) Sägeblätter auf Beschädigungen prüfen\n"]
[null,"B 274","Handtrennschleifmaschinen",null,null,null,null,"ungeschützt bewegte Maschinenteile, Funkenflug, Lärm, Staub","1) Unterweisung aller Mitarbeiter\n\n2) Regelmäßige Überprüfung Schutzeinrichtungen \n\n3) Gehörschutz tragen\n\n4) Augenschutz tragen\n\n5) Evtl. Atemschutz benutzen"]
[null,"B 291","Reinigungsmaschinen",null,null,null,null,"Unkontrolliert bewegte Teile","1) Betriebsanweisung auf Baustelle hinterlegen"]
[null,"B 115","Flammgeräte",null,null,null,null,"Brand / Explosion","1) Betriebsanweisung auf Baustelle hinterlegen\n\n2)  bei brandgefährderter Umgebung Löschmittel bereitstellen \n\n3) Arbeitsstelle auf Brandnester überwachen\n\n4) Nicht auf leicht brennbarer Fläche verwenden"]
[null,"B 119","Mischmaschinen",null,null,null,null,"ungeschütze, bewegte Maschinenteile, Lärm, Staub","1) Betriebsanweisung auf Baustelle hinterlegen\n\n2) Drehende Maschine nur auf festem Untergrund verankern"]
[null,"B 126","Pendelkreissägen/Auslegerkreissägen",null,null,null,null,"ungeschützt bewegte Maschinenteile, Lärm, Staub","1) Betriebsanweisung auf Baustelle hinterlegen\n\n2) Unterweisung aller Mitarbeiter\n\n3) Regelmäßige Überprüfung Schutzeinrichtungen \n\n4) Richtiger Sitz der Schutzhaube \n\n5) Trageverbot von Handschuhen\n"]
["x","C 301","Abbrucharbeiten",null,4,4,"A","Stolpern, rutschen, unkontrolliert bewegte Teile, Absturz, Gefahrstoffe\nG","1) Abbruchkonzept erarbeiten  und an SiGeKo übersenden\n\n2) Verkehrswege von Hindernissen freihalten \n\n3) Beseitigung von Verschmutzungen an Arbeitsplätzen \n\n4)  PSA benutzen \n\n5) Vorsorgeuntersuchungen je nach Gefährdung\n\n6) Bereiche unterhalb des Abbruchs absperren\n\n7) Bodenöffnungen verschiebesicher und durchtrittsicher verschließen\n",2,1,"-"]
[null,"C 302","Abbruch mit Großgeräten",null,null,null,null,"Stolpern, rutschen, unkontrolliert bewegte Teile, Absturz, Gefahrstoffe\nG;\nStaubbelastung der Atemwege","1) Abbruchkonzept erarbeiten  und an SiGeKo übersenden\n\n2) Verkehrswege von Hindernissen freihalten \n\n3) Beseitigung von Verschmutzungen an Arbeitsplätzen \n\n4) PSA benutzen, ggf. PSA gegen Absturz\n\n5) Sicherheitsabstände \n\n6) kein Aufenthalt im Gefahrenbereich \n\n7) Staubminimierung durch Wässern oder Staubschutzmaschinen\n\n8) Abbruchbereich durch Folien schützen"]
[null,"C 303","Abbruch von Hand/Demontieren",null,null,null,null,"unkontrolliert bewegte Teile, Absturz, Gefahrstoffe\nG","1) Abbruchplan erarbeiten\n \n2) Verkehrswege von Hindernissen freihalten \n\n3) Beseitigung von Verschmutzungen an Arbeitsplätzen \n\n4) PSA benutzen \n\n5) auf Standsicherheit achten \n\n6) Absturzsicherung herstellen, 3-teilig mindestesn 1,10 m hoch"]
[null,"C 305","Demontagearbeiten",null,null,null,null,"Durch die Verwendung von ungeeigneten Anschlagpunkten der zu demontierenden Bauteile kann es zu Personenschäden kommen.","1) Demontagearbeteiten erst dann beginnen, wenn der bauliche Zustand des abzubrechenden Bauwerks und angrenzender Bauteile in statischer und konstruktiver Hinsicht geprüft ist\n\n2) Standsicherheit und Tragfähigkeit der baulichen und technischen Anlagen während der Demontagearbeiten jederzeit gewährleisten\n\n3) Geeignete Anschlagpunkte festlegen bzw. schaffen\n\n4) Fachlich geeignete Personen (Aufsichtsführende) müssen die Demontagearbeiten leiten und beaufsichtigen\n\n5) Art und Zustand der zu demontierenden Bauteile bzw. Anlagenteile erkunden\n\n6) Demontageverfahren nach örtlichen Gegebenheiten auswählen\n\n7) Gefahrstoffe, Gebäudeschadstoffe und Biostoffe ermitteln,\nArbeitsanweisung aufstellen und entsprechende Schutzmaßnahmen treffen\n\n8) Bei plötzlich auftretenden Gefahren sind die Arbeiten sofort einzustellen\n\n9) Gegenseitige Gefährdungen vermeiden\n"]
[null,"C 311","Asbestzementprodukte",null,null,null,null,"Gefahrstoffe \nG,\nGefährdung der Atemwege etc.","1) Anzeige mit Arbeitsplan bei BG und Aufsichtsbehörde, TRGS 519 beachten\n\n2) Betriebsanweisung auf Baustelle hinterlegen \n\n3) Unterweisung aller Mitarbeiter\n\n4) Schutzmaßnahmen festlegen \n\n5) Entsorgung gemäß Vorschrift\n\n6) Atemschutz verwenden\n"]
[null,"C 312","Schwach gebundene Asbestprodukte",null,null,null,null,"Gefahrstoffe \nG;\nGefährdung durch Fasern","1) Anzeige mit Arbeitsplan bei BG und Aufsichtsbehörde, TRGS 519 beachten\n\n2) Betriebsanweisung auf Baustelle hinterlegen \n\n3) Unterweisung aller Mitarbeiter\n\n4) Schutzmaßnahmen festlegen \n\n5) Entsorgung gemäß Vorschrift\n\n6) Atemschutz verwenden\n\n7) Schwach gebundene Asbeststoffe mit Sprühkleber behandeln und eingepackt entsorgen\n"]
[null,"C 314","Grundierungen/Klebstoffe/Versiegelungen",null,null,null,null,"Gefahrstoffe \nG;\nAtemwegserkrankungen","1) Unterweisung aller Mitarbeiter \n\n2) Belüftung gewährleisten\n\n3) PSA benutzen\n\n4) Hautschutzplan erstellen/beachten\n\n5) Rauchverbot aufgrund Brandgefahr\n"]
[null,"C 315","Holzstäube",null,null,null,null,"Gefahrstoffe \nG","1) Betriebsanweisung auf Baustelle hinterlegen\n\n2) Absaugung (nicht benutzte Schieber schliessen) \n\n3) Staub auf Kleidung nicht mit Druckluft ablasen\n"]
[null,"C 316","Arbeiten in kontaminierten Bereichen",null,null,null,null,"Durch Gefahrstoffe oder biolgische Arbeitsstoffe kann es zu Gesundheitsschäden kommen","1) Möglichst emissionsarmes Verfahren auswählen\n\n2) Einsatz von Fahrzeugen und Erdbaumaschinen, die mit Anlagen zur Atemluftversorgung (Filter- oder Druckluftversorgung) ausgestattet sind\n\n3) Besondere Baustelleneinrichtigung vorsehen\n\n4) Schutzhandschuhe, Fußschutz, Schutzkleidung und Atemschutz nach Eigenschaften der Gefahr-/Biostoffe und zu erwartender Exposition/Gefährdung\n\n5) Unterweisung aller Mitarbeiter\n\n6) Erste Hilfe bereitstellen"]
["x","C 317","Steinstäube",null,4,2,"B","Gefahrstoffe \nG,\nAtemwegsreizungen","1) Gefährdungsbeurteilung erstellen \n\n2) Einhausen mit Folie oder Abschottungen\n\n3) Absaugen direkt an Ort und Stelle\n\n4) Beischleif- oder Trennarbeiten nassschleifen \n\n6) Atemschutz benutzen\n",2,1,"-"]
[null,"C 319","Mineralwolle-Dämmstoffe - Glas-, Stein- und Schlackenwolle",null,null,null,null,"Gefahrstoffe \nG,\nAtemwegsreizungen","1) Betriebsanweisung auf Baustelle hinterlegen\n\n2) Vorkonfektionierte Produkte verwenden \n\n3) Ausreichend Lüftung gewährleisten\n\n4) Saugen statt kehren \n\n5) PSA benutzen (wie z. B Mundschutz)\n\n6) Hygiene beachten"]
[null,"C 320","Alte Mineralwolle-Dämmstoffe - Glas- u. Steinwolle mit krebsverdächtigen Eigenschaften",null,null,null,null,"Gefahrstoffe \nG,\nAtemwegsreizungen","1) Verwendungsverbot \n\n2) Betriebsanweisung auf Baustelle hinterlegen\n\n3) Vorkonfektionierte Produkte verwenden \n\n4) Ausreichende Lüftung gewährleisten\n\n5) Saugen statt kehren \n\n6) PSA benutzen (z. B. Mundschutz)\n\n7) Hygiene beachten\n\n8) Ausbau von z. B. KMF gemäß TRGS 521 "]
[null,"C 322","Kampfmittelräumung",null,null,null,null,"Explosion","1) Räumkonzept erstellen\n\n2) Arbeits- und Sicherheitsplan erstellen und auf Baustelle hinterlegen \n\n3) Unterweisung aller Mitarbeiter\n\n4) Aufsichtspersonal mit Befähigungsnachweis  bereitstellen und Arbeiten frühzeitig ankündigen\n\n5) Absperrung vornehmen\n\n6) Bei unvorhersehbaren Funden von Kampfmitteln umgehend Polizei verständigen und Arbeiten einstellen + Baustelle räumen"]
[null,"C 323","Schimmelpilze bei der Gebäudesanierung",null,null,null,null,"Gefahrstoffe\nG;\nAtemwegsreizungen\nInfektionsgefährdung,\nSensibilisierende, toxische Wirkung\nätzende Wirkung","1) Schutzkleidung tragen\n\n2) Atem- und Augenschutz benutzen \n\n3) Schwarz-Weiß-Trennung mit Schadstoffsanierungskonzept\n"]
[null,"C 324","Verunreinigungen durch Tauben",null,null,null,null,"Gefahrstoffe\nG;\nAtemwegsreizungen\nInfektionsgefährdung,\nSensibilisierende, toxische Wirkung,\nätzende Wirkung,\nParasiten","1) Vermeidung von Staubentwicklung \n\n2) Schwarz-Weiß-Trennung \n\n3) Waschgelegenheit vorhalten\n\n4) Augen-, Atem- und Hautschutz benutzen \n\n5) Schutzkleidung tragen\n\n6) BGI Handlungsanleitung Nr. 862 beachten\n"]
[null,"C 331","Reinigen, Abbeizen und Konservieren von Fassaden",null,null,null,null,"Gefahrstoffe\nG;\nAtemwegsreizungen\n","1) Betriebsanweisung auf Baustelle hinterlegen\n\n2) Unterweisung aller Mitarbeiter \n\n3) Einhausung/Abschirmung vornehmen\n"]
[null,"C 332","Reinigungs- und Pflegemittel",null,null,null,null,"Gefahrstoffe\nG;\nAtemwegsreizungen\nInfektionsgefährdung,\nSensibilisierende, toxische Wirkung,\nätzende Wirkung,","1) Betriebsanweisung auf Baustelle hinterlegen\n\n2) Unterweisung aller Mitarbeiter\n\n3) Hautschutzplan erstellen und auf Baustelle hinterlegen\n"]
[null,"C 333","Desinfektionsmittel",null,null,null,null,"Gefahrstoffe\nG;\nAtemwegsreizungen\nInfektionsgefährdung,\nSensibilisierende, toxische Wirkung,\n","1) Betriebsanweisung auf Baustelle hinterlegen\n\n2) Unterweisung aller Mitarbeiter\n\n3) Hautschutzplan erstellen und auf Baustelle hinterlegen\n"]
[null,"C 334","Glas- und Fassadenreinigung",null,null,null,null,"Absturz, Atemwegsreizungen durch Reinigungsmittel\nStolpern, rutschen, heiße Oberflächen","1) Betriebsanweisung auf Baustelle hinterlegen\n \n2) Fensterbrett min. 25 cm breit und tragfähig \n\n3) Ab 2 m Absturzsicherung \n\n4) Anschlagpunkte benutzen \n\n5) Hebebühnen benutzen \n\n6) Laufstege benutzen\n"]
[null,"C 335","Gebäudeinnenreinigung",null,null,null,null,"Absturz, Atemwegsreizungen durch Reinigungsmittel\nStolpern, rutschen, heiße Oberflächen","1) Objektbezogene Unterweisung der zuständigen Mitarbeiter\n \n2) Hautschutz benutzen\n\n3) rutschhemmendes Schuhwerk tragen\n"]
[null,"C 342","Dachdeckung mit Profilblechen",null,null,null,null,"Absturz, herabfallende Gegenstände","1) Montageanweisung beachten \n\n2) Schutznetze montieren mit erforderlicher Maschenweite\n\n3) Seitenschutz anbringen oder Schutzgerüst herstellen\n\n4) durchtrittsichere Abdeckungen montieren oder Umwehrungen einrichten\n\n5) PSA gegen Absturz benutzen"]
[null,"C 343","Dachdeckung mit Wellplatten",null,null,null,null,"Absturz, herabfallende Gegenstände,\nGefahrstoffe falls Asbest","1) Montageanweisung beachten \n\n2) Schutznetze montieren mit erforderlicher Maschenweite\n\n3) Seitenschutz anbringen oder Schutzgerüst herstellen\n\n4) durchtrittsichere Abdeckungen montieren oder Umwehrungen einrichten\n\n5) PSA gegen Absturz benutzen"]
[null,"C 345","Dacharbeiten - Arbeitsplätze und Absturzsicherungen",null,null,null,null,"Absturz","1) Unterweisung aller Mitarbeiter\n\n2) Absturzsicherung Tabelle D 238 \n\n3) Seitenschutz, PSA gegen Absturz benutzen"]
[null,"C 346","Dacharbeiten - Öffnungen u. Lichtkuppeln",null,null,null,null,"Absturz","1) Unterweisung aller Mitarbeiter\n\n2) Öffnungen sichern durch abdecken oder sperren \n\n3) Lichtkuppeln gelten als nicht durchsturzsicher\n\n4) Nicht durchtrittsichere Öffnungen absperren\n"]
[null,"C 351","Gerüstbauarbeiten - Sicherung gegen Absturz beim Auf-, Um- und Abbau",null,null,null,null,"Absturz, herabfallende Gegenstände","1) TOP-Prinzip anwenden: Montagesicherungsgeländer (MSG) \n\n2) Schutzeinrichtungen zum Auffangen \n\n3) PSA gegen Absturz benutzen\n"]
[null,"C 352","Gerüstbauarbeiten - Plan für Auf-, Um- und Aufbau / Montageanweisung",null,null,null,null,"Absturz, herabfallende Gegenstände","1) Montageplan erstellen bzw. Aufbau- und Verwendungsanleitung benutzen"]
[null,"C 353","Gerüstbauarbeiten - Prüfung u. Dokumentation, Plan für die Benutzung",null,null,null,null,"Absturz, herabfallende Gegenstände","1) Befähigte Person des Gerüstbauers prüft nach Montage  \n\n2) Benutzer prüft vor Inbetriebnahme - Freigabeschein am Gerüstaufgang muss vor Benutzung vorhanden sein"]
["x","C 354","Gerüstbauarbeiten - PSA gegen Absturz (PSAgA)",null,4,3,"A","Absturz, herabfallende Gegenstände","1) Unterweisung aller Mitarbeiter\n\n2) PSA gegen Absturz vor Benutzung überprüfen \n\n3) nur an geeigneten Gerüstbauteilen befestigen \n\n4) Mindestens auf Geländerholmhöhe anschlagen \n\n5) Auffangsystem mit Falldämpfer \n\n6) Keine beschädigte oder durch Sturz beanspruchte PSA gegen Absturz benutzen\n\n7) PSA muss gültige Prüfung besitzen",3,2,"C"]
[null,"C 355","Gerüstbauarbeiten im öffentlichen Verkehrsraum",null,null,null,null,"Absturz, herabfallende Gegenstände","1) Verkehrsrechtliche Anordnung erforderlich \n\n2) Warnkleidung tragen \n\n3) Mindestmaße und Sicherheitsabstände einhalten \n\n4) Kennzeichnung und Beleuchtung beachten\n\n5) Im Gleisbereich Lichtraumprofile beachten und abstimmen"]
[null,"C 356","Gerüstbauarbeiten - Befähigte Personen u. fachlich geeignete Beschäftigte",null,null,null,null,"Absturz, herabfallende Gegenstände","1) Qualifikation und Berufserfahrung \n\n2) Befähigte Person ist ständig auf der Baustelle \n\n3) Füllt das Prüfprotokoll aus und unterschreibt es\n"]
[null,"C 361","Fertigteile aus Beton und Mauerwerk",null,null,null,null,"Unkontrolliert bewegte Teile, Absturz;","1) Montageanweisung aufstellen \n\n2) Sicherheitsabstände einhalten\n\n3) Absturzsicherungen für Montage herstellen\n\n4) Nicht unter der Last aufhalten\n\n5) Lastenaufnahmemittel prüfen\n\n6) Nur an der dafür vorgesehene Kranöse anschlagen"]
[null,"C 362","Montage von Holzbauteilen",null,null,null,null,"Versagen der Lastenaufnahmemittel, Umkippen während Montage","1) Montageanweisung beachten\n\n2) Sicherheitsabstände einhalten\n\n3) Absturzsicherung herstellen\n"]
["x","C 364","Steinbearbeitung",null,4,3,"A","Unkontrolliert bewegte Teile, Gefahrstoffe \nG","1) Intaktes Werkzeug benutzen \n\n2) Absaugen von entstehenden Stäuben bzw. nassschneiden\n\n3) Augenschutz benutzen \n\n4) Atemschutz benutzen\n\n5) Gehörschutz",3,2,"C"]
[null,"C 365","Bohren und Sägen von Beton und Asphalt",null,null,null,null,"Unkontrolliert bewegte Teile","1) Betriebsanweisung \n\n2) vor Beginn der Arbeit auf Medienfreiheit prüfen \n\n3) Standsicherheit der Bauteile sicherstellen \n\n4) Gefahrenbereiche absperren \n\n5) nur laufendes Werkzeug auf das zu bearbeitende Material ansetzen \n\n6) PSA benutzen"]
["x","C 366","Verarbeiten großformatiger Mauersteine",null,3,2,"C","schwere Lasten","1) Montageanweisung beachten\n\n2) Arbeitsbühnen mit Umwehrung herstellen\n\n3) Versetzgeräte wie Minikrane verwenden bei > 25 kg Elemente\n\n4) Transport mit handgeführten oder elektrischen Nieder- oder Hochhubwagen\n",2,1,"-","XXXX"]
[null,"C 372","Glasbearbeitung/Glasverarbeitung",null,null,null,null,"Unkontrolliert bewegte Teile","1) Betriebsanweisung auf Baustelle hinterlegen\n\n2) maschinelle Bearbeitung nur unter Wasserspülung \n\n3) schnittfeste Handschuhe tragen\n\n4) Arbeitsbereich sauber halten\n\n5) Zerbrochene Glasscheiben entsorgen\n"]
[null,"C 385","Keramikfaserprodukte",null,null,null,null,"Faserstäube, Atemwegsreizungen","1) Betriebsanweisung auf Baustelle hinterlegen\n\n2) Unterweisung aller Mitarbeiter\n\n3) vorkonfektionierte Produkte bevorzugen \n\n4) Arbeitsplatz sauber halten, PSA benutzen"]
[null,"C 401","Strahlarbeiten",null,null,null,null,"Gefahrstoffe, unkontrolliert bewegte Teile\nG","1) Betriebsanweisung auf Baustelle hinterlegen\n\n2) Unterweisung aller Mitarbeiter\n\n3)  Einhausung herstellen mit Folie\n\n4) nichtsilikogenes Strahlgut benutzen \n\n5) spezielle PSA benutzen mit Atemschutz bzw. Vollmasken\n\n6) Kommunikation gewährleisten für Rettungskette\n\n"]
[null,"C 403","Beschichtungsarbeiten",null,null,null,null,"Gefahrstoffe \nG,\nAtemwegsreizungen, Reizungen der Augen","1) Unterweisung aller Mitarbeiter\n\n2) Belüftung gewährleisten mit ZU- und Abluftsystem\n\n3) PSA benutzen (Atemschutzmaske, Schutzbrille)\n\n4) Hautschutzplan erstellen und auf Baustelle hinterlegen\n\n5) Arbeitsbereiche mit mit Abschottung absperren\n"]
[null,"C 404","Lacke und Anstrichstoffe",null,null,null,null,"Gefahrstoffe \nG,\nAtemwegsreizungen, Reizungen der Augen","1) Betriebsanweisung auf Baustelle hinterlegen\n \n2) Sicherheitsdatenblatt vorhalten \n\n3) evtl. Vorsorge AMD auf Gefahrstoffe \n\n4) Belüftung gewährleisten mit Zu- und Abluftsystem\n\n5) Erste-Hilfe anpassen\n\n6) Arbeitsbereiche mit Abschottung absperren\n"]
[null,"C 411","Arbeiten in engen Räumen sowie in Bereichen mit erhöhter elektrischer Gefährdung",null,null,null,null,"Gefahrstoffe, Temperatur, Brand, Explosion\nG","1) Messung von Gefahrstoffkonzentrationen \n\n2) Ausreichende Belüftung sicherstellen\n\n3) Sicherungsmaßnahmen festlegen, Evakuierungsmaßnahmen \n\n4) Notfall- u. Rettungsplan erstellen und auf Baustelle hinterlegen\n\n5) Zugangsverfahren festlegen"]
[null,null,"Arbeiten in der Näne von elektrischen Freileitungen",null,null,null,null,"Berühren spannungsführender Teile","1) Unterweisung aller Mitarbeiter\n\n2) Sicherheitsabstände einhalten oder Spannungsfreiheit herstellen bzw. Abdecken/Abschranken\n\n3) Großgeräte während Arbeiten mit permanenten Erdungssystemen ausrüsten"]
[null,"C 423","Gasschweißen/Brennschneiden/Hartlöten",null,null,null,null,"Gefahrstoffe, Brand, Explosion\nG","1) Betriebsanweisung auf Baustelle hinterlegen\n\n2) Schweißerlaubnis vorweisen und nur Sachkundige die Arbeiten ausführen lassen\n\n3) brennbare Teile aus der Umgebung entfernen \n\n4) Löschmittel vorhalten \n\n5) PSA benutzen, Schweißmaske, Handschuhe\n\n6) für ausreichende Lüftung sorgen"]
[null,"C 424","Elektroschweißen/Schutzgasschweißen",null,null,null,null,"Gefahrstoffe, Brand, Explosion\nG","1) Betriebsanweisung auf Baustelle hinterlegen\n\n2) Schweißerlaubnis vorweisen und nur Sachkundige die Arbeiten ausführen lassen\n\n3) brennbare Teile aus der Umgebung entfernen \n\n4) Löschmittel vorhalten \n\n5) PSA benutzen, Schweißmaske, Handschuhe\n\n6) für ausreichende Lüftung sorgen"]
[null,"C 431","Arbeiten im Gleisbereich - Arbeitsvorbereitung",null,null,null,null,"vom Zug erfasst und getroffen werden, elektrische Gefährdung durch Oberleitungen, Erschütterungen","1) Anzeigepflicht mit ggf. Sicherungsposten und Alamierungssystemen\n\n2) Sicherungsplan erstellen und auf Baustelle hinterlegen \n\n3) Einweisung aller Mitarbeiter\n\n4) PSA benutzen, Schutz-/Warnwesten\n"]
[null,"C 432","Arbeiten im Gleisbereich - Warnsysteme",null,null,null,null,"erfasst und getroffen werden, elektrische Gefährdung","1) Anzeigepflicht mit ggf. Sicherungsposten und Alamierungssystemen\n\n2) Sicherungsplan erstellen und auf Baustelle hinterlegen \n\n3) Einweisung aller Mitarbeiter\n\n4) PSA benutzen, Schutz-/Warnwesten\n"]
[null,"C 433","Arbeiten im Gleisbereich, Handtragbare Geräte",null,null,null,null,"vom Zug erfasst und getroffen werden, elektrische Gefährdung durch Oberleitungen, Erschütterungen","1) Anzeigepflicht mit ggf. Sicherungsposten und Alamierungssystemen\n\n2) Sicherungsplan erstellen und auf Baustelle hinterlegen \n\n3) Einweisung aller Mitarbeiter\n\n4) PSA benutzen, Schutz-/Warnwesten\n"]
[null,"C 435","Arbeiten mit Schotterplaniermaschinen",null,null,null,null,"erfasst und getroffen werden","\n1) Sicherungsplan erstellen und auf Baustelle hinterlegen \n\n2) Einweisung aller Mitarbeiter\n\n3) PSA benutzen\n\n4) Betriebs- und Bauanweisungsanweisung (Betra)"]
[null,"C 440","Arbeiten im Gleisbereich von Straßenbahnen",null,null,null,null,"- Schienenfahrzeuge,\n- den öffentlichen Straßenverkehr,\n- die Oberleitung der Straßenbahn","1) Arbeitsablauf so planen, dass der Schutzabstand zur Oberleitung eingehalten wird\n\n2) Hebezeugarbeiten unter Oberleitung vermeiden\n\n3) Arbeitshöhe gering halten, z.B. Absetzcontainer anstatt LKW einsetzen\n\n4) Bei Arbeiten mit Hebezeugen im Gleisbereich (z.B. Bagger) Oberleitung freischalten lassen\n\n5) Schutzabstand einhalten von Oberleitung, Quertragwerken, Abspanndrähten, Speiseleitungen\n\n6) Einweisung von Maschinen- und Geräteführer (Kran, Bagger etc.), \n\n7) Feste Absperrng zwischen Arbeitsbereich und Gleisbereich\n\n8) Querungen der Trasse vermeiden\n\n9) Wenn Arbeiten hinter der festen Absperrung erforderlich sind: Anmeldung bei der für den Bahnbetrieb zuständigen Stelle\n\n10) keine Verwendung von Hochdruckreiningern\n\n11) Arbeiten im Gleisbereich nur mit Sicherung z.B. durch Gleissperrung, automatisches Warnsystem oder Sicherungsposten.\n\n12) Turmdrehkrane mit Arbeitsbereichsbegrenzung ausrüsten. Schwenkbegrenzung reicht i. A. nicht aus \n\n13) Bei Kranen Ausschwingen angeschlagener Lasten, auch durch Windeinfluss, beachten\n\n14) Kraftbetriebene Maschinenteile oder angehängte Lasten dürfen nicht in den Gleisbereich hineinragen\n"]
[null,"C 441","Ingenieurbauarbeiten in Gleisnähe",null,null,null,null,"elektriche Gefährdung\n- wenn Personen, Bauteile, Maschinen, Geräte, Lasten in den Gleisbereich hineingeraten,\n- wenn sich Teile von Maschinen oder Lasten unbeabsichtigt der Fahrleitung oder Speiseleitung nähern,\n- wenn Material oder Bauteile in die Gleisanlage abstürzen,\n","1) Arbeitsablauf so planen, dass der Schutzabstand zur Oberleitung eingehalten wird\n\n2) Hebezeugarbeiten unter Oberleitung vermeiden\n\n3) Arbeitshöhe gering halten, z.B. Absetzcontainer anstatt LKW einsetzen\n\n4) Bei Arbeiten mit Hebezeugen im Gleisbereich (z.B. Bagger) Oberleitung freischalten lassen\n\n5) Schutzabstand einhalten von Oberleitung, Quertragwerken, Abspanndrähten, Speiseleitungen\n\n6) Einweisung von Maschinen- und Geräteführer (Kran, Bagger etc.), \n\n7) Feste Absperrng zwischen Arbeitsbereich und Gleisbereich\n\n8) Querungen der Trasse vermeiden\n\n9) Wenn Arbeiten hinter der festen Absperrung erforderlich sind: Anmeldung bei der für den Bahnbetrieb zuständigen Stelle\n\n10) Keine Verwendung von Hochdruckreiningern\n\n11) Arbeiten im Gleisbereich nur mit Sicherung z.B. durch Gleissperrung, automatisches Warnsystem oder Sicherungsposten.\n\n12)  Turmdrehkrane mit Arbeitsbereichsbegrenzung ausrüsten. Schwenkbegrenzung reicht i. A. nicht aus \n\n13) Bei Kranen Ausschwingen angeschlagener Lasten, auch durch Windeinfluss, beachten\n\n14) Kraftbetriebene Maschinenteile oder angehängte Lasten dürfen nicht in den Gleisbereich hineinragen"]
[null,"C 461","Trägerbohlwände/Spundwände",null,null,null,null,"Unkontrolliert bewegte Teile, Verschüttet werden, Absturz;\nGefährdung durch Erschütterung","1) Standsicherheitsnachweis vorweisen\n\n2) Zugang über Treppe/Rampe gewährleisten\n\n3) Verkehrssicherung durchführen\n\n4) Absturzsicherung herstellen\n\n5) angrenzende Bebauung beachten\n\n6) Medienleitungen berücksichtigen und Leitungsplätze prüfen\n\n7) Einvibrieren statt Rammen\n"]
[null,"C 464","Arbeiten unter Tage in Druckluft",null,null,null,null,"Erhöhte Körperbelastung, Gefahrstoffe in der Atemluft, Brand","1) Anzeigepflicht \n\n2) Spezifische Maßnahmen anwenden"]
[null,"C 465","Spritzbetonarbeiten",null,null,null,null,"Gefahrstoffe \nG","1) Betriebsanweisung auf Baustelle hinterlegen\n\n2) Unterweisung aller Mitarbeiter\n\n3) Im Gefahrenbereich ist nur der Düsenführer \n\n4) Knickfreie Schlauchverlegung, PSA benutzen\n"]
[null,"C 466","Tunnelbau",null,null,null,null,"Gesamtes Gefahrenspektrum, Separate Beurteilung erforderlich","1) Detaillierte Risikoermittlung durchführen"]
["x","C 467","Ausschachtungen neben Gebäuden",null,3,3,"B","Setzungen, Risse, Einsturz","1) Statischer Nachweis erforderlich\n\n2) Sicherungsmaßnahmen ggf. durch Abfangungen\n\n3) Setzungskontrolle einrichten\n\n4) Unterfangung herstellen",2,2,"D"]
["x","C 468","Gründungen neben Fundamenten",null,3,3,"B","Setzungen, Risse, Einsturz","1) Statischer Nachweis erforderlich\n\n2) Abschnittsweise Unterfangung herstellen\n\n3) Sicherungsmaßnahmen gegen Unterspülungen durch Niederschläge\n\n4) Setzungskontrolle einrichten \n",2,2,"D"]
[null,null,"Verbaute Gräben – Waagerechter und senkrechter Verbau",null,null,null,null,"Verschüttet werden, Einsturzgefahr;\nVersagen des Verbaus","1) Leitungsgräben nach DIN 4124 verbauen \n\n2) zul. Grabenbreite einhalten \n\n3) bei Rückbau schrittweise verfüllen \n\n4) Sicherheitsabstände einhalten \n\n5) erdverlegte Leitungen freilegen/sichern \n\n6) Verbauten einrichten ab einer Tiefe von > 1,25 m\n"]
["x","C 473","Rohrleitungsbauarbeiten",null,3,4,"A","Absturz, Hindernisse, Schadstoffe, fehlende Standfestigkeit, körperliche Belastung","1) Freigabescheinverfahren \n\n2) Betriebsanweisung \n\n3) Unterweisung \n\n4) Schutzmaßnahmen festlegen\n",2,2,"D"]
["x","C 474","Erdverlegte Leitungen",null,4,4,"A","Stromschlag, Lichtbogen, Freisetzung von Medium","1) Beim Antreffen unbekannter Leitungen sofort Vorgesetzten/Betreiber informieren\n \n2) Freilegen nur in Handschachtung, bei Beschädigungen Arbeiten sofort einstellen\n\n3) Leitungsverlegung vorher prüfen",2,1,"-"]
[null,null,"Bodenstabilisierung mit Bindemittel"]
[null,"C 480","Arbeiten am Wasser",null,null,null,null,"Ertrinken , Strömungen in Flüssen","1) Rettungswesten bereithalten\n\n2) Rettungsringe bereithalten\n\n3) Sicherung mit Seil vornehmen\n\n4) Rettungsboot bereithalten\n"]
[null,"C 476","Arbeiten im Bereich von Abwasseranlagen - Kanäle und Bauwerke",null,null,null,null,"Bei Arbeiten in abwassertechnischen Anlage können Personen durch Absturz verletzt werden\n\nDurch gefährliche Atmosphäre im Schacht kann es zu Erstickungen oder Vergiftungen kommen","1) Betriebsanweisung auf Baustelle hinterlgen\n\n2) Unterweisung der Mitarbeiter\n\n3) Rettungsübungen durchführen\n\n4) Messungen der Gase während der Arbeiten durchführen\n\n5) Messungen nur durch fachkundiges Personal durchführen lassen\n\n6) Lüftungsmaßnahmen durchführen, Zu- und Abluftanlage"]
[null,"C 475","Arbeiten im Bereich von Abwasseranlagen - Schächte",null,null,null,null,"Bei Arbeiten in abwassertechnischen Anlage können Personen durch Absturz verletzt werden\n\nDurch gefährliche Atmosphäre im Schacht kann es zu Erstickungen oder Vergiftungen kommen","1) Alarm- und Rettungsplan aufstellen\n\n2) Aufsichtsführenden benennen\n\n3) Betriebsanweisung auf Baustelle hinterlegen\n\n4) Vor Beginn der Arbeiten Messungen durchführen, ob Gefährdung durch Gase o. ä. oder eine zu geringe Sauerstoffkonzentration herrscht\n\n5) Lüftungsmaßnahmen durchführen, Zu- und Abluftanlage"]
[null,"C 479","Einbau von Gussasphalt",null,null,null,null,"Dämpfe, Verbrennungen, hohe Temperaturen, körperliche Belastungen","1) Temperatursenkung vornehmen\n\n2) Belüftung gewährleisten\n\n3) Wärmeschutz herstellen\n\n4) PSA benutzen, Hitzeschutzschuhe, Atemschutzmasken"]
[null,"D 500","Gefährdung durch Lärm und Vibration ",null,null,null,null,"Gefahrstoffe \nG;\nAtemwegsreizungen etc.","1) Festlegen des Arbeitsbereiches  \n\n2) Gefährdungen ermitteln  \n\n3)Gehörschutz\n"]
["x","D 502","Gefährdung durch Staub",null,3,2,"C","Gefahrstoffe \nG;\nAtemwegsreizungen etc.","1) Festlegen des Arbeitsbereiches  \n\n2) Gefährdungen ermitteln  \n\n3) Gefährdungen beurteilen Risiken bewerten \n\n4) Schutzmaßnahmen festlegen / Schutzmaßnahmen umsetzen  \n\n5) Wirksamkeit prüfen",1,1,"-"]
[null,"D 503","Gefährdung durch biologische Arbeitsstoffe",null,null,null,null,"Gefahrstoffe \nG;\nAtemwegsreizungen etc.","1) Betriebsanweisung auf Baustelle hinterlegen\n\n2) Arbeitsmedizinischen Dienst nach Bedarf"]
[null,"D 504","Gefährdung durch chemische Stoffe",null,null,null,null,"Gefahrstoffe \nG;\nAtemwegsreizungen etc.","1) Betriebsanweisung auf Baustelle hinterlegen\n\n2) Arbeitsmedizinischen Dienst nach Bedarf"]
["x","D 505","Gefährdung durch Hitze und Kälte",null,3,3,"C","Hitze, Kälte, Verbrennungen, Erfrierungen","1) Hautschutzplan (Sonnenschutz) \n\n2) Sonnenbrillen verwenden\n\n3) geeignete Kälteschutzkleidung (Thermostiefel, Wetterschutzkleidung) \n\n4) angepasste Arbeitszeiten",2,1,"-"]
[null,"D 506","Gefährdung durch schwere körperliche Belastungen",null,null,null,null,"Beanspruchung Muskel- und Skelettsystem","1) Gewichte reduzieren, max 25 kg\n\n2) technische Hilfsmittel, benutzen wie Hebeanlage, Kran etc.\n"]
[null,"D 507","Gefährdung durch körperliche Leistungsminderung",null,null,null,null,"Missverhältnis Leistungsvermögen und Anforderungen","1) Betriebsärtzliche Untersuchung und Beratung"]
["x","D 114","Geböschte Baugruben",null,3,4,"A","Verschüttet werden, Rutschgefahr,\nStolpergefahr, Umkippen von Fahrzeugen","1) Standsicherheit gewährleisten \n\n2) Sicherheitsabstände einhalten \n\n3) erdverlegte Leitungen freilegen und sichern \n\n4) Verkehrssicherung \n\n5) Mindestneigung einhalten\n\n6) Verkehrswege festlegen\n\n7) Böschungen absperren\n",2,2,"D"]
["x","E 600","Fußschutz",null,3,3,"B","Spitze Gegenstände, heiße Oberflächen, unkontrolliert bewegte Teile, Umknicken","1) Hohe S3-Sicherheitsschuhe tragen",2,2,"D"]
["x","E 601","Persönliche Schutzausrüstungen gegen Absturz (PSAgA)",null,3,4,"A","Absturz, Einklemmen","1) Unterweisung \n\n2) mitlaufendes Auffanggerät an beweglicher Führung \n\n3) Höhensicherungsgerät \n\n4) Vorsorge G41 AMD der BG BAU \n\n5) Rettungseinrichtung sicherstellen\n\n6) Nur geprüfte Arbeitsmittel verwenden\n",2,2,"D"]
["x","E 602","Kopfschutz",null,3,4,"A","herabfallende, pendelnde, umfallende, wegfliegende Gegenstände / Anstoßen mit Kopf an Gegenstände","1) Tragen eines geeigneten Kopfschutzes (Industriehelm), um die einwirkenden Kräfte zu verteilen und abzuleiten \n\n2) Schutzhelme mit Firmen-Logo und Namen des Mitarbeiters, evtl. Aufkleber \"Ersthelfer\" \n\n3) Gebrauchsdauer beachten und nach Ablegereife entsorgen\n",1,1,"-"]
["x","E 603","Atemschutz",null,3,2,"C","Stäube / Rauche / Nebel …","1) Filtrierende Halbmasken nur 2 Std. tragen\n\n2) Vollmasken bei Arbeiten >2,00 Std. nur mit geeigneten Filter\n",1,1,"-"]
[null,"E 604","Schutzhandschuhe",null,null,null,null,"mechanische, thermische, chemische Einwirkung","1) Schutzhandschuhe Tabelle A108"]
[null,"E 605","Hautschutz",null,null,null,null,"Mechanische Einwirkung, Klima","1) Hautreinigung nach Verunreinigung\n\n2) Hautpflege als Präventivmaßnahme\n\n3) Hautschutzplan erstellen\n\n4) UV-Schutz bei hoher Sonneneinstrahlung\n\n5) Vorsorge-Untersuchung AMD der Bau BG\n"]
["x","E 606","Schutzkleidung",null,3,2,"C","Mechanische Einwirkung, Klima, Gefahrstoffe","1) Berufskleidung (Wetterschutz, Kontaminationsschutz, Chemikalienschutz, UV-Schutz)",1,1,"-"]
["x","E 607","Augen- und Gesichtsschutz",null,3,3,"B","Flüssigkeiten, Staub, Gase, Funken, Lichtbogen, Festkörper","1) Schutzbrille, -schirm, -schild, -haube\n\n2) evtl. Tragepflicht auf dem Baustellengelände",2,1,"-"]
["x","E 609","Gehörschutz",null,3,3,"B","Lärm","1) Gehörschutz (Kapselschützer, Gehörschutzstöpsel, Otoplastiken) \n\n2) Vorsorge G20 AMD der Bau BG ",2,1,"-"]
[null,"G 806","Arbeitssicherheit und Gesundheitsschutz - die Prävention",null,null,null,null,"Unzureichende Arbeitssicherheit auf der Baustelle","1) Beauftragte Person zur Arbeitssicherheit zum Eigenschutz beauftragen bzw. erfoderliche Unterlagen auf der Baustelle vorhalten\n\n2) Arbeitssicherheit vor Beginn der Leistungsausführung herstellen"]
["x","G 809","Sicherheitsbeauftragte (Bestellung/Aufgaben)",null,3,3,"B","keine Kontrolle der Arbeitssicherheit","1) Beauftragte Person zur  Arbeitssicherheit gemäß Angabe AG auf der Baustelle für alle Mitarbeiter kenntlich machen\n\n2) Unterweisung aller Mitarbeiter und beteiligten Unternehmen auf Baustelle durch Sicherheitsbeauftragten vor Arbeitsbeginn",2,2,"D"]
[]
[]
["x",null,"Umweltschutz"]
["x",null,"Abfalltrennung",null,2,2,"D","Gefahrstoffe \nG","1) Trennen und fachgererecht bis zur Entsorgung lagern \n\n2) Gefahrstoffe kennzeichnen",1,1,"-"]
["x","Die Prüfungen von Maschinen und Geräten gem. BetrSichV §§ 3, 10 wird bis zum Vorliegen abweichender Regelungen auf der Grundlage der Unfallverhütungsvorschriften der Berufsgenossenschaften vorgenommen."]
["x","Gefährdungsbeurteilung erstellt durch:",null,null,null,null,null,null,"Verteiler:\nBaustelle \nBüro\nSiGiKo - "]
["x","Datum, Unterschrift (Bauleiter / Polier )"]

{"sheet":"Unterweisungprotokoll","index":3,"n_rows":32,"n_cols":9,"rows_kept":32,"cut":false,"hidden":false,"merged":[[25,1,25,8],[41,0,52,0],[24,1,24,8],[5,5,6,5],[35,1,35,2],[26,1,26,8],[6,1,6,4],[49,1,49,3],[30,1,30,4],[27,1,27,8],[33,1,33,2],[49,7,49,8],[2,7,2,8],[2,5,2,6],[4,5,4,6],[2,1,2,4],[4,1,4,4],[32,1,32,2],[7,5,8,5],[34,1,34,2],[8,1,8,4]]}
[]
[null,"Baustelle",null,null,null,"Kostenstelle",null,"Verteiler "]
[null,{"$f":"Gefährdungsbeurteilung!B4","v":0},null,null,null,{"$f":"+Gefährdungsbeurteilung!E4","v":0}]
[null,"Bauleiter",null,null,null,"Datum"]
[null,{"$f":"Gefährdungsbeurteilung!B6","v":0},{"$f":"+Gefährdungsbeurteilung!C7","v":0},null,{"$f":"+Gefährdungsbeurteilung!B6","v":0}]
[null,"Polier"]
[null,{"$f":"Gefährdungsbeurteilung!B8","v":0},{"$f":"+Gefährdungsbeurteilung!C9","v":0},null,{"$f":"+Gefährdungsbeurteilung!B8","v":0}]
[null,"Sicherheitsfachkraft"]
[null,{"$f":"Gefährdungsbeurteilung!B10","v":0},{"$f":"+Gefährdungsbeurteilung!C11","v":"Tätigkeit"},null,{"$f":"+Gefährdungsbeurteilung!B10","v":0}]
[]
[]
[null,"x","PAB Personal",null,null,null,"   Nachunternehmer"]
[null,null,null,null,null,null,"   (verantwortl. Führungskräfte)"]
[null,"Anlass der Unterweisung"]
[]
[null,"x","   Erstunterweisung",null,null,null,"   Wiederholungsunterweisung"]
[]
[null,null,"   Arbeitsaufnahme auf einer neuen Baustelle",null,null,null,"   Umgang mit Gefahrstoffen"]
[]
[null,null,"   Sicherheitsgespräch"]
[]
[]
[null,"Inhalt der Unterweisung"]
[]
[]
[null,"Gefährdungsbeurteilung "]
[]
[]
[]
[]
[null,"Unterwiesen und verstanden :"]
[null,"Name",null,"Firma","Unterschrift",null,"Name","Firma","Unterschrift"]